Publisher Label,Publisher URI,"Supplier ID","Supplier","Invoice No.","Amount £","Purpose","Transaction Number","Payment Date","Organisational Unit","Cost Centre(T)","Internal Category Number"
"Wolverhampton City Council","http://opendatacommunities.org/id/metropolitan-district-council/wolverhampton","719045","Edward the Elder Primary School","T42 Summer 18 Inst 1&2 Rising 3�s","1,807.80","TPP - Private Nursery Education Funding","190489834","25/07/2018","Early Years","Early Years Entitlement Funding for Disadvantaged 2 Year Olds","R5035"
"Wolverhampton City Council","http://opendatacommunities.org/id/metropolitan-district-council/wolverhampton","719045","Edward the Elder Primary School","Edward the Elder Acadeny Early Years Payment Summer Term 2018-19","29,146.95","Grant Payments","190484572","13/07/2018","Central Education","Academy Early years","R4700"
"Wolverhampton City Council","http://opendatacommunities.org/id/metropolitan-district-council/wolverhampton","719045","Edward the Elder Primary School","Edward the Elder Acadeny Early Years Payment Autumn Term Interim 2018-19","10,759.61","Grant Payments","190484596","13/07/2018","Central Education","Academy Early years","R4700"
"Wolverhampton City Council","http://opendatacommunities.org/id/metropolitan-district-council/wolverhampton","719056","Innovative Safety Systems","9192","158.50","Equipment - Purchase","190483192","11/07/2018","Fleet Services","Fleet Management","R4000"
"Wolverhampton City Council","http://opendatacommunities.org/id/metropolitan-district-council/wolverhampton","719056","Innovative Safety Systems","9520","158.50","Equipment - Purchase","190488098","25/07/2018","Fleet Services","Fleet Management","R4000"
"Wolverhampton City Council","http://opendatacommunities.org/id/metropolitan-district-council/wolverhampton","719056","Innovative Safety Systems","9445","158.50","Equipment - Purchase","190486277","23/07/2018","Fleet Services","Fleet Management","R4000"
"Wolverhampton City Council","http://opendatacommunities.org/id/metropolitan-district-council/wolverhampton","719056","Innovative Safety Systems","9526","158.50","Equipment - Purchase","190490235","27/07/2018","Fleet Services","Fleet Management","R4000"
"Wolverhampton City Council","http://opendatacommunities.org/id/metropolitan-district-council/wolverhampton","719067","Robert Glover","RSGWAG016-3","300.09","Services - Professional Fees","130220715","18/07/2018","Visitor Economy","Technical Support - ACE NPO WAG","R4400"
"Wolverhampton City Council","http://opendatacommunities.org/id/metropolitan-district-council/wolverhampton","719067","Robert Glover","RSGWAG016-2","500.12","Services - Professional Fees","130219078","04/07/2018","Visitor Economy","Technical Support - ACE NPO WAG","R4400"
"Wolverhampton City Council","http://opendatacommunities.org/id/metropolitan-district-council/wolverhampton","719067","Robert Glover","RSGWAG017","50.00","Services - Professional Fees","130219149","04/07/2018","Visitor Economy","Contemporary Gallery - NPO ACE WAG","R4400"
"Wolverhampton City Council","http://opendatacommunities.org/id/metropolitan-district-council/wolverhampton","719067","Robert Glover","RSGWAG016-4","500.15","Services - Professional Fees","130221958","25/07/2018","Visitor Economy","Technical Support - ACE NPO WAG","R4400"
"Wolverhampton City Council","http://opendatacommunities.org/id/metropolitan-district-council/wolverhampton","719071","Slicker Recycling Ltd","129744","383.25","Cleaning Supplies and Materials","190483121","11/07/2018","Fleet Services","Fleet Management","R2705"
"Wolverhampton City Council","http://opendatacommunities.org/id/metropolitan-district-council/wolverhampton","719123","The Huntercombe Group","24509295","1,320.00","TPP - Alternative Provision of Education","130223474","25/07/2018","Special Educational Needs","SEN Education OOC","R5037"
"Wolverhampton City Council","http://opendatacommunities.org/id/metropolitan-district-council/wolverhampton","719123","The Huntercombe Group","24405342","1,320.00","TPP - Alternative Provision of Education","130223473","25/07/2018","Special Educational Needs","SEN Education OOC","R5037"
"Wolverhampton City Council","http://opendatacommunities.org/id/metropolitan-district-council/wolverhampton","719177","Transparent Care Limited","P177586 22071820180703","8,599.80","TPP - Residential Care - Long Term","190476036","04/07/2018","Learning Disabilities Care Purchasing","LD Care Purchasing (Spot Placements)","R5400"
"Wolverhampton City Council","http://opendatacommunities.org/id/metropolitan-district-council/wolverhampton","719177","Transparent Care Limited","P177586 22071820180703","5,449.80","TPP - Residential Care - Long Term","190476036","04/07/2018","Learning Disabilities Care Purchasing","LD Care Purchasing (Spot Placements)","R5400"
"Wolverhampton City Council","http://opendatacommunities.org/id/metropolitan-district-council/wolverhampton","719177","Transparent Care Limited","P177586 22071820180703","5,299.80","TPP - Residential Care - Long Term","190476036","04/07/2018","Learning Disabilities Care Purchasing","LD Care Purchasing (Spot Placements)","R5400"
"Wolverhampton City Council","http://opendatacommunities.org/id/metropolitan-district-council/wolverhampton","719178","Lorraine Waterfield","NEF Summer 2018 INST 2","864.88","TPP - Private Nursery Education Funding","190489824","25/07/2018","Early Years","Early Years Universal Entitlement for 3 and 4 Year Olds","R5035"
"Wolverhampton City Council","http://opendatacommunities.org/id/metropolitan-district-council/wolverhampton","719179","Busy Childcare LLP","EYPP Summer 2018 Merry Go Round","95.40","TPP - Private Nursery Education Funding","190489848","25/07/2018","Early Years","Early Years Pupil Premium","R5035"
"Wolverhampton City Council","http://opendatacommunities.org/id/metropolitan-district-council/wolverhampton","719179","Busy Childcare LLP","TFT Summer 2018 Inst 2 Merry Go","3,521.28","TPP - Private Nursery Education Funding","190489841","25/07/2018","Early Years","Early Years Entitlement Funding for Disadvantaged 2 Year Olds","R5035"
"Wolverhampton City Council","http://opendatacommunities.org/id/metropolitan-district-council/wolverhampton","719179","Busy Childcare LLP","NEF Summer 2018 INST 2 Barts Busy","16,996.18","TPP - Private Nursery Education Funding","190489828","25/07/2018","Early Years","Early Years Universal Entitlement for 3 and 4 Year Olds","R5035"
"Wolverhampton City Council","http://opendatacommunities.org/id/metropolitan-district-council/wolverhampton","719179","Busy Childcare LLP","TFT Summer 2018 Inst 2 Barts Busy","2,041.24","TPP - Private Nursery Education Funding","190489839","25/07/2018","Early Years","Early Years Entitlement Funding for Disadvantaged 2 Year Olds","R5035"
"Wolverhampton City Council","http://opendatacommunities.org/id/metropolitan-district-council/wolverhampton","719179","Busy Childcare LLP","EYPP Summer 2018 Gatis","286.20","TPP - Private Nursery Education Funding","190489847","25/07/2018","Early Years","Early Years Pupil Premium","R5035"
"Wolverhampton City Council","http://opendatacommunities.org/id/metropolitan-district-council/wolverhampton","719179","Busy Childcare LLP","NEF Summer 2018 INST 2 Gatis","2,145.00","TPP - Private Nursery Education Funding","190489829","25/07/2018","Early Years","Early Years Universal Entitlement for 3 and 4 Year Olds","R5035"
"Wolverhampton City Council","http://opendatacommunities.org/id/metropolitan-district-council/wolverhampton","719179","Busy Childcare LLP","TFT Summer 2018 Inst 2 Gatis","1,509.12","TPP - Private Nursery Education Funding","190489840","25/07/2018","Early Years","Early Years Entitlement Funding for Disadvantaged 2 Year Olds","R5035"
"Wolverhampton City Council","http://opendatacommunities.org/id/metropolitan-district-council/wolverhampton","719179","Busy Childcare LLP","NEF Summer 2018 INST 2 Merry Go","10,082.70","TPP - Private Nursery Education Funding","190489830","25/07/2018","Early Years","Early Years Universal Entitlement for 3 and 4 Year Olds","R5035"
"Wolverhampton City Council","http://opendatacommunities.org/id/metropolitan-district-council/wolverhampton","719197","Fire Protection Association","INV102016","1,460.00","Training Expenses","130222951","23/07/2018","Public Service Reform","Centralised Training","R1650"
"Wolverhampton City Council","http://opendatacommunities.org/id/metropolitan-district-council/wolverhampton","719202","The Bigger Picture Education Service","16086514","105.00","Services - Professional Fees","130219447","11/07/2018","Looked After Children","Pupil Premium","R4400"
"Wolverhampton City Council","http://opendatacommunities.org/id/metropolitan-district-council/wolverhampton","719202","The Bigger Picture Education Service","16086514","210.00","Services - Professional Fees","130219447","11/07/2018","Looked After Children","Pupil Premium","R4400"
"Wolverhampton City Council","http://opendatacommunities.org/id/metropolitan-district-council/wolverhampton","719202","The Bigger Picture Education Service","16086514","480.00","Services - Professional Fees","130219447","11/07/2018","Looked After Children","Pupil Premium","R4400"
"Wolverhampton City Council","http://opendatacommunities.org/id/metropolitan-district-council/wolverhampton","719208","Bilston Business Improve. District Ltd","INV-0010","41,075.92","TPP - Business Improvement District (BID) Levy","190482535","11/07/2018","Revenues & Benefits","Bilston Business Improvement District","R5152"
"Wolverhampton City Council","http://opendatacommunities.org/id/metropolitan-district-council/wolverhampton","719212","Evolution Childcare @Scholars House","NEF Summer 2018 INST 2","11,061.90","TPP - Private Nursery Education Funding","190489824","25/07/2018","Early Years","Early Years Universal Entitlement for 3 and 4 Year Olds","R5035"
"Wolverhampton City Council","http://opendatacommunities.org/id/metropolitan-district-council/wolverhampton","719212","Evolution Childcare @Scholars House","TFT Summer 2018 Inst 2","3,395.52","TPP - Private Nursery Education Funding","190489836","25/07/2018","Early Years","Early Years Entitlement Funding for Disadvantaged 2 Year Olds","R5035"
"Wolverhampton City Council","http://opendatacommunities.org/id/metropolitan-district-council/wolverhampton","719212","Evolution Childcare @Scholars House","0000000984","90.00","TPP - Child Care provided for client","130221960","11/07/2018","Early Intervention","EIP Locality 8 � Children�s Village","R5034"
"Wolverhampton City Council","http://opendatacommunities.org/id/metropolitan-district-council/wolverhampton","719212","Evolution Childcare @Scholars House","0000000983","90.00","TPP - Child Care provided for client","130221959","18/07/2018","Early Intervention","EIP Locality 8 � Children�s Village","R5034"
"Wolverhampton City Council","http://opendatacommunities.org/id/metropolitan-district-council/wolverhampton","719214","Love 2 Shop","24590354","1,477.50","Subsistence","130223374","25/07/2018","Standards and Vulnerable Pupils","SENDIASS","R4610"
"Wolverhampton City Council","http://opendatacommunities.org/id/metropolitan-district-council/wolverhampton","719231","Authorised Publications Ltd","MIDCCG24/16","200.00","Marketing \ Non-staff advertising","130221711","06/07/2018","Catering","Education Catering - General Overheads","R4317"
"Wolverhampton City Council","http://opendatacommunities.org/id/metropolitan-district-council/wolverhampton","719239","Cartello Ambulance","031672","117.50","Client Transport","130222294","13/07/2018","Adults Assessment & Care Management North","Adult Services � North","R3042"
"Wolverhampton City Council","http://opendatacommunities.org/id/metropolitan-district-council/wolverhampton","719239","Cartello Ambulance","031687","141.00","Client Transport","130223117","23/07/2018","Adults Assessment & Care Management West","Adult Services � West","R3042"
"Wolverhampton City Council","http://opendatacommunities.org/id/metropolitan-district-council/wolverhampton","719247","Apex Ecology Limited","2240","1,214.00","Construction and Conversion","130219602","11/07/2018","-","Heath Town","C1100"
"Wolverhampton City Council","http://opendatacommunities.org/id/metropolitan-district-council/wolverhampton","719247","Apex Ecology Limited","2240","1,214.00","Construction and Conversion","130219602","11/07/2018","-","Heath Town","C1100"
"Wolverhampton City Council","http://opendatacommunities.org/id/metropolitan-district-council/wolverhampton","719247","Apex Ecology Limited","2235","465.00","Services - Professional Fees","130219342","04/07/2018","Housing Revenue Account","HRA General","R4400"
"Wolverhampton City Council","http://opendatacommunities.org/id/metropolitan-district-council/wolverhampton","719247","Apex Ecology Limited","2235","465.00","Services - Professional Fees","130219342","04/07/2018","Housing Revenue Account","HRA General","R4400"
"Wolverhampton City Council","http://opendatacommunities.org/id/metropolitan-district-council/wolverhampton","719292","Bushbury Lane Academy (Oxley Primary)","Bushbury Lane Academy Early Years Payment Summer Term 2018-19","16,272.00","Grant Payments","190484571","13/07/2018","Central Education","Academy Early years","R4700"
"Wolverhampton City Council","http://opendatacommunities.org/id/metropolitan-district-council/wolverhampton","719292","Bushbury Lane Academy (Oxley Primary)","EYPP Summer 2018","858.60","TPP - Private Nursery Education Funding","190489844","25/07/2018","Early Years","Early Years Pupil Premium","R5035"
"Wolverhampton City Council","http://opendatacommunities.org/id/metropolitan-district-council/wolverhampton","719292","Bushbury Lane Academy (Oxley Primary)","Bushbury Lane Academy Early Years Payment Autumn Term Interim 2018-19","6,647.55","Grant Payments","190484595","13/07/2018","Central Education","Academy Early years","R4700"
"Wolverhampton City Council","http://opendatacommunities.org/id/metropolitan-district-council/wolverhampton","719306","Options Autism 5 Limited","1450200289","24,003.81","TPP - Independent Schools","130223254","23/07/2018","Special Educational Needs","SEN Education OOC","R5036"
"Wolverhampton City Council","http://opendatacommunities.org/id/metropolitan-district-council/wolverhampton","719357","Probrand","OP/I601603","90.23","Computing - Purchase of Hardware","130223119","25/07/2018","Adult Education","ICT Services","R4530"
"Wolverhampton City Council","http://opendatacommunities.org/id/metropolitan-district-council/wolverhampton","719357","Probrand","OP/I601578","3,175.00","Computing - Purchase of Hardware","130223118","25/07/2018","Adult Education","ICT Services","R4530"
"Wolverhampton City Council","http://opendatacommunities.org/id/metropolitan-district-council/wolverhampton","719382","Wiltshire Farm Foods (W-ton)","F096-PSI086489","206.26","Provisions (Not for resale)","130219603","11/07/2018","Learning Disability Provider","Duke Street Bungalows","R4101"
"Wolverhampton City Council","http://opendatacommunities.org/id/metropolitan-district-council/wolverhampton","719382","Wiltshire Farm Foods (W-ton)","F096-PSI086094","51.10","Provisions (Not for resale)","130219079","04/07/2018","Older People Provider Services","Bradley Lodge Resource Centre","R4101"
"Wolverhampton City Council","http://opendatacommunities.org/id/metropolitan-district-council/wolverhampton","719382","Wiltshire Farm Foods (W-ton)","F096-PSI086030","206.26","Provisions (Not for resale)","130219343","04/07/2018","Learning Disability Provider","Duke Street Bungalows","R4101"
"Wolverhampton City Council","http://opendatacommunities.org/id/metropolitan-district-council/wolverhampton","719382","Wiltshire Farm Foods (W-ton)","F096-PSI087266","206.26","Provisions (Not for resale)","130221220","25/07/2018","Learning Disability Provider","Duke Street Bungalows","R4101"
"Wolverhampton City Council","http://opendatacommunities.org/id/metropolitan-district-council/wolverhampton","719382","Wiltshire Farm Foods (W-ton)","F096-PSI086897","206.26","Provisions (Not for resale)","130220449","18/07/2018","Learning Disability Provider","Duke Street Bungalows","R4101"
"Wolverhampton City Council","http://opendatacommunities.org/id/metropolitan-district-council/wolverhampton","719384","Microform Imaging Limited","53553","12,391.40","Services - Fees and Charges","130221221","11/07/2018","Public Service Reform","Register Office","R4401"
"Wolverhampton City Council","http://opendatacommunities.org/id/metropolitan-district-council/wolverhampton","719407","Stay TelfordXC supported Housing","1197","3,855.44","TPP - Accommodation","130221222","06/07/2018","Child Protection","CIN/CP Social Work Unit - Area 2","R5603"
"Wolverhampton City Council","http://opendatacommunities.org/id/metropolitan-district-council/wolverhampton","719411","Paul Lloyd","00015","450.00","Rent","130221961","27/07/2018","Child Protection","Childrens with Disabilities Team","R2200"
"Wolverhampton City Council","http://opendatacommunities.org/id/metropolitan-district-council/wolverhampton","719428","S H Training","INVOICE-JUNE2018","790.00","Training Expenses","130221712","25/07/2018","Public Service Reform","Centralised Training","R1650"
"Wolverhampton City Council","http://opendatacommunities.org/id/metropolitan-district-council/wolverhampton","719449","Mentoring West Midlands CIC","0561","396.00","Services - Supplies and Services to service users","130219448","11/07/2018","Early Intervention","EIP Locality 3 - Graiseley","R4408"
"Wolverhampton City Council","http://opendatacommunities.org/id/metropolitan-district-council/wolverhampton","719449","Mentoring West Midlands CIC","0559","792.00","Services - Professional Fees","130218982","04/07/2018","Early Intervention","EIP Locality 1 - Eastfields","R4400"
"Wolverhampton City Council","http://opendatacommunities.org/id/metropolitan-district-council/wolverhampton","719516","Starfish Health & Wellbeing CIC","SF/WCC-015","8,916.66","TPP - Social Care Support Services","130221419","27/07/2018","Strategic Commissioning","Commissioning Mental Health","R5501"
"Wolverhampton City Council","http://opendatacommunities.org/id/metropolitan-district-council/wolverhampton","719517","Aces East Park","NEF Summer 2018 INST 2","3,366.00","TPP - Private Nursery Education Funding","190489824","25/07/2018","Early Years","Early Years Universal Entitlement for 3 and 4 Year Olds","R5035"
"Wolverhampton City Council","http://opendatacommunities.org/id/metropolitan-district-council/wolverhampton","719517","Aces East Park","TFT Summer 2018 Inst 2","7,765.68","TPP - Private Nursery Education Funding","190489836","25/07/2018","Early Years","Early Years Entitlement Funding for Disadvantaged 2 Year Olds","R5035"
"Wolverhampton City Council","http://opendatacommunities.org/id/metropolitan-district-council/wolverhampton","719517","Aces East Park","NEF Summer 2018 INST 2 Manor","5,814.00","TPP - Private Nursery Education Funding","190489827","25/07/2018","Early Years","Early Years Universal Entitlement for 3 and 4 Year Olds","R5035"
"Wolverhampton City Council","http://opendatacommunities.org/id/metropolitan-district-council/wolverhampton","719521","Moonstone Day Care Ltd","NEF Summer 2018 INST 2","8,606.25","TPP - Private Nursery Education Funding","190489824","25/07/2018","Early Years","Early Years Universal Entitlement for 3 and 4 Year Olds","R5035"
"Wolverhampton City Council","http://opendatacommunities.org/id/metropolitan-district-council/wolverhampton","719521","Moonstone Day Care Ltd","EYPP Summer 2018","572.40","TPP - Private Nursery Education Funding","190489844","25/07/2018","Early Years","Early Years Pupil Premium","R5035"
"Wolverhampton City Council","http://opendatacommunities.org/id/metropolitan-district-council/wolverhampton","719521","Moonstone Day Care Ltd","TFT Summer 2018 Inst 2","3,599.88","TPP - Private Nursery Education Funding","190489836","25/07/2018","Early Years","Early Years Entitlement Funding for Disadvantaged 2 Year Olds","R5035"
"Wolverhampton City Council","http://opendatacommunities.org/id/metropolitan-district-council/wolverhampton","719521","Moonstone Day Care Ltd","004","180.00","TPP - Child Care provided for client","130219604","11/07/2018","Adult Education","Discretionary Fund","R5034"
"Wolverhampton City Council","http://opendatacommunities.org/id/metropolitan-district-council/wolverhampton","719527","Water Plus","01408480_3005600211","97.93","Water Charges","190482828","18/07/2018","Corporate Asset Management","Central Utilities to Recharge","R2400"
"Wolverhampton City Council","http://opendatacommunities.org/id/metropolitan-district-council/wolverhampton","719527","Water Plus","01408480_3006091132","1,182.43","Water Charges","190482832","18/07/2018","Corporate Asset Management","Central Utilities to Recharge","R2400"
"Wolverhampton City Council","http://opendatacommunities.org/id/metropolitan-district-council/wolverhampton","719527","Water Plus","01408480_3006170563","618.32","Water Charges","190482833","18/07/2018","Corporate Asset Management","Central Utilities to Recharge","R2400"
"Wolverhampton City Council","http://opendatacommunities.org/id/metropolitan-district-council/wolverhampton","719527","Water Plus","01408480_3006476743","674.62","Water Charges","190482844","18/07/2018","Corporate Asset Management","Central Utilities to Recharge","R2400"
"Wolverhampton City Council","http://opendatacommunities.org/id/metropolitan-district-council/wolverhampton","719527","Water Plus","01408480_3006476700","65.01","Water Charges","190482843","18/07/2018","Corporate Asset Management","Central Utilities to Recharge","R2400"
"Wolverhampton City Council","http://opendatacommunities.org/id/metropolitan-district-council/wolverhampton","719527","Water Plus","01408480_3007182182","332.24","Water Charges","190482858","18/07/2018","Corporate Asset Management","Central Utilities to Recharge","R2400"
"Wolverhampton City Council","http://opendatacommunities.org/id/metropolitan-district-council/wolverhampton","719527","Water Plus","01408480_3006729641","49.25","Water Charges","190482851","18/07/2018","Corporate Asset Management","Central Utilities to Recharge","R2400"
"Wolverhampton City Council","http://opendatacommunities.org/id/metropolitan-district-council/wolverhampton","719527","Water Plus","01408480_3006899482","13.42","Water Charges","190482855","18/07/2018","Corporate Asset Management","Central Utilities to Recharge","R2400"
"Wolverhampton City Council","http://opendatacommunities.org/id/metropolitan-district-council/wolverhampton","719527","Water Plus","01408480_3006630866","1,297.02","Water Charges","190482849","18/07/2018","Corporate Asset Management","Central Utilities to Recharge","R2400"
"Wolverhampton City Council","http://opendatacommunities.org/id/metropolitan-district-council/wolverhampton","719527","Water Plus","01408480_3007250331","433.09","Water Charges","190482859","18/07/2018","Corporate Asset Management","Central Utilities to Recharge","R2400"
"Wolverhampton City Council","http://opendatacommunities.org/id/metropolitan-district-council/wolverhampton","719527","Water Plus","01408480_300679088X","1,677.71","Water Charges","190482867","18/07/2018","Corporate Asset Management","Central Utilities to Recharge","R2400"
"Wolverhampton City Council","http://opendatacommunities.org/id/metropolitan-district-council/wolverhampton","719527","Water Plus","01207988_3006043154","5.97","Water Charges","190475666","04/07/2018","Corporate Asset Management","Central Utilities to Recharge","R2400"
"Wolverhampton City Council","http://opendatacommunities.org/id/metropolitan-district-council/wolverhampton","719527","Water Plus","01207988_3200144092","229.40","Water Charges","190475675","04/07/2018","Corporate Asset Management","Central Utilities to Recharge","R2400"
"Wolverhampton City Council","http://opendatacommunities.org/id/metropolitan-district-council/wolverhampton","719527","Water Plus","01207988_300651467X","21.96","Water Charges","190475676","04/07/2018","Corporate Asset Management","Central Utilities to Recharge","R2400"
"Wolverhampton City Council","http://opendatacommunities.org/id/metropolitan-district-council/wolverhampton","719527","Water Plus","01018373_3005057828","1,793.79","Water Charges","190475681","04/07/2018","Corporate Asset Management","Central Utilities to Recharge","R2400"
"Wolverhampton City Council","http://opendatacommunities.org/id/metropolitan-district-council/wolverhampton","719527","Water Plus","01018373_3005179877","2,003.99","Water Charges","190475686","04/07/2018","Corporate Asset Management","Central Utilities to Recharge","R2400"
"Wolverhampton City Council","http://opendatacommunities.org/id/metropolitan-district-council/wolverhampton","719527","Water Plus","01018373_3006305728","138.71","Water Charges","190475696","04/07/2018","Corporate Asset Management","Central Utilities to Recharge","R2400"
"Wolverhampton City Council","http://opendatacommunities.org/id/metropolitan-district-council/wolverhampton","719527","Water Plus","01018373_3006201752","314.98","Water Charges","190475695","04/07/2018","Corporate Asset Management","Central Utilities to Recharge","R2400"
"Wolverhampton City Council","http://opendatacommunities.org/id/metropolitan-district-council/wolverhampton","719527","Water Plus","01018373_3005835146","163.11","Water Charges","190475691","04/07/2018","Corporate Asset Management","Central Utilities to Recharge","R2400"
"Wolverhampton City Council","http://opendatacommunities.org/id/metropolitan-district-council/wolverhampton","719527","Water Plus","01018373_3006729641","24.31","Water Charges","190475705","04/07/2018","Corporate Asset Management","Central Utilities to Recharge","R2400"
"Wolverhampton City Council","http://opendatacommunities.org/id/metropolitan-district-council/wolverhampton","719527","Water Plus","01018373_3007238951","484.07","Water Charges","190475714","04/07/2018","Corporate Asset Management","Central Utilities to Recharge","R2400"
"Wolverhampton City Council","http://opendatacommunities.org/id/metropolitan-district-council/wolverhampton","719527","Water Plus","01018373_3007250331","637.03","Water Charges","190475715","04/07/2018","Corporate Asset Management","Central Utilities to Recharge","R2400"
"Wolverhampton City Council","http://opendatacommunities.org/id/metropolitan-district-council/wolverhampton","719527","Water Plus","01223263_3005805786","526.46","Water Charges","190475610","04/07/2018","Schools","Bushbury Hill Primary School","R2400"
"Wolverhampton City Council","http://opendatacommunities.org/id/metropolitan-district-council/wolverhampton","719527","Water Plus","01223263_3006962710","66.46","Water Charges","190475614","04/07/2018","Schools","Springvale Primary School","R2400"
"Wolverhampton City Council","http://opendatacommunities.org/id/metropolitan-district-council/wolverhampton","719527","Water Plus","01223263_300557850X","30.79","Water Charges","190475608","04/07/2018","Facilities Management","Management of Vacant Properties","R2400"
"Wolverhampton City Council","http://opendatacommunities.org/id/metropolitan-district-council/wolverhampton","719527","Water Plus","01223263_3007099110","151.48","Water Charges","190475616","04/07/2018","Schools","Fallings Park Primary School","R2400"
"Wolverhampton City Council","http://opendatacommunities.org/id/metropolitan-district-council/wolverhampton","719527","Water Plus","01223263_3007314372","2.86","Water Charges","190475620","04/07/2018","Corporate Asset Management","Central Utilities to Recharge","R2400"
"Wolverhampton City Council","http://opendatacommunities.org/id/metropolitan-district-council/wolverhampton","719527","Water Plus","01223263_3005471462","2,708.49","Water Charges","190475607","04/07/2018","Corporate Asset Management","Central Utilities to Recharge","R2400"
"Wolverhampton City Council","http://opendatacommunities.org/id/metropolitan-district-council/wolverhampton","719527","Water Plus","01223263_3006801555","497.38","Water Charges","190475613","04/07/2018","Corporate Asset Management","Central Utilities to Recharge","R2400"
"Wolverhampton City Council","http://opendatacommunities.org/id/metropolitan-district-council/wolverhampton","719527","Water Plus","01223263_3007243548","9.89","Water Charges","190475619","04/07/2018","Corporate Asset Management","Central Utilities to Recharge","R2400"
"Wolverhampton City Council","http://opendatacommunities.org/id/metropolitan-district-council/wolverhampton","719527","Water Plus","01248703_3006170512","25.50","Water Charges","190475623","04/07/2018","Corporate Asset Management","Central Utilities to Recharge","R2400"
"Wolverhampton City Council","http://opendatacommunities.org/id/metropolitan-district-council/wolverhampton","719527","Water Plus","01248703_3006453948","99.96","Water Charges","190475625","04/07/2018","Corporate Asset Management","Central Utilities to Recharge","R2400"
"Wolverhampton City Council","http://opendatacommunities.org/id/metropolitan-district-council/wolverhampton","719527","Water Plus","01248703_3006473213","511.43","Water Charges","190475626","04/07/2018","Corporate Asset Management","Central Utilities to Recharge","R2400"
"Wolverhampton City Council","http://opendatacommunities.org/id/metropolitan-district-council/wolverhampton","719527","Water Plus","01248703_3006934962","1,903.26","Water Charges","190475630","04/07/2018","Corporate Asset Management","Central Utilities to Recharge","R2400"
"Wolverhampton City Council","http://opendatacommunities.org/id/metropolitan-district-council/wolverhampton","719527","Water Plus","01239543_3006905407","38.82","Water Charges","190475645","04/07/2018","Corporate Asset Management","Central Utilities to Recharge","R2400"
"Wolverhampton City Council","http://opendatacommunities.org/id/metropolitan-district-council/wolverhampton","719527","Water Plus","01239543_3006899482","6.61","Water Charges","190475644","04/07/2018","Corporate Asset Management","Central Utilities to Recharge","R2400"
"Wolverhampton City Council","http://opendatacommunities.org/id/metropolitan-district-council/wolverhampton","719527","Water Plus","01239543_3007237602","473.54","Water Charges","190475647","04/07/2018","Corporate Asset Management","Central Utilities to Recharge","R2400"
"Wolverhampton City Council","http://opendatacommunities.org/id/metropolitan-district-council/wolverhampton","719527","Water Plus","01239543_300675526X","49.89","Water Charges","190475653","04/07/2018","Schools","Dovecotes Primary School","R2400"
"Wolverhampton City Council","http://opendatacommunities.org/id/metropolitan-district-council/wolverhampton","719527","Water Plus","01239543_3007822386","24.31","Water Charges","190475651","04/07/2018","Corporate Asset Management","Central Utilities to Recharge","R2400"
"Wolverhampton City Council","http://opendatacommunities.org/id/metropolitan-district-council/wolverhampton","719527","Water Plus","01239543_3006170814","567.47","Water Charges","190475636","04/07/2018","Corporate Asset Management","Central Utilities to Recharge","R2400"
"Wolverhampton City Council","http://opendatacommunities.org/id/metropolitan-district-council/wolverhampton","719527","Water Plus","01443030_3007227909","534.19","Water Charges","190482886","11/07/2018","Schools","Broadmeadow Nursery Special School","R2400"
"Wolverhampton City Council","http://opendatacommunities.org/id/metropolitan-district-council/wolverhampton","719527","Water Plus","01443030_3007160103","1,382.89","Water Charges","190482885","11/07/2018","Schools","Rakegate Primary School","R2400"
"Wolverhampton City Council","http://opendatacommunities.org/id/metropolitan-district-council/wolverhampton","719527","Water Plus","01443030_300705494X","737.14","Water Charges","190482881","11/07/2018","Schools","Springvale Primary School","R2400"
"Wolverhampton City Council","http://opendatacommunities.org/id/metropolitan-district-council/wolverhampton","719527","Water Plus","01443030_3007146836","55.38","Water Charges","190482884","11/07/2018","Schools","Whitgreave Infant School","R2400"
"Wolverhampton City Council","http://opendatacommunities.org/id/metropolitan-district-council/wolverhampton","719527","Water Plus","01443030_3005254038","1,793.44","Water Charges","190482868","11/07/2018","Schools","West Park Primary School","R2400"
"Wolverhampton City Council","http://opendatacommunities.org/id/metropolitan-district-council/wolverhampton","719527","Water Plus","01223236_300590928X","2,027.50","Water Charges","190481146","06/07/2018","Corporate Asset Management","Central Utilities to Recharge","R2400"
"Wolverhampton City Council","http://opendatacommunities.org/id/metropolitan-district-council/wolverhampton","719527","Water Plus","01223236_3005471535","526.21","Water Charges","190481141","06/07/2018","Corporate Asset Management","Central Utilities to Recharge","R2400"
"Wolverhampton City Council","http://opendatacommunities.org/id/metropolitan-district-council/wolverhampton","719527","Water Plus","01408480_3005835146","330.24","Water Charges","190482829","18/07/2018","Corporate Asset Management","Central Utilities to Recharge","R2400"
"Wolverhampton City Council","http://opendatacommunities.org/id/metropolitan-district-council/wolverhampton","719527","Water Plus","01408480_3006286812","181.33","Water Charges","190482836","18/07/2018","Estates and Valuations","Industrial Premises ; Fordhouse Road","R2400"
"Wolverhampton City Council","http://opendatacommunities.org/id/metropolitan-district-council/wolverhampton","719527","Water Plus","01408480_3006517717","21.90","Water Charges","190482846","18/07/2018","Corporate Asset Management","Central Utilities to Recharge","R2400"
"Wolverhampton City Council","http://opendatacommunities.org/id/metropolitan-district-council/wolverhampton","719527","Water Plus","01408480_3007123011","601.53","Water Charges","190482857","18/07/2018","Corporate Asset Management","Central Utilities to Recharge","R2400"
"Wolverhampton City Council","http://opendatacommunities.org/id/metropolitan-district-council/wolverhampton","719527","Water Plus","01408480_3006512707","141.69","Water Charges","190482845","18/07/2018","Corporate Asset Management","Central Utilities to Recharge","R2400"
"Wolverhampton City Council","http://opendatacommunities.org/id/metropolitan-district-council/wolverhampton","719527","Water Plus","01408480_3006476697","97.32","Water Charges","190482842","18/07/2018","Corporate Asset Management","Central Utilities to Recharge","R2400"
"Wolverhampton City Council","http://opendatacommunities.org/id/metropolitan-district-council/wolverhampton","719527","Water Plus","01408480_3007108225","2,688.99","Water Charges","190482856","18/07/2018","Corporate Asset Management","Central Utilities to Recharge","R2400"
"Wolverhampton City Council","http://opendatacommunities.org/id/metropolitan-district-council/wolverhampton","719527","Water Plus","01408480_3006780779","66.95","Water Charges","190482854","18/07/2018","Facilities Management","Management of Vacant Properties","R2400"
"Wolverhampton City Council","http://opendatacommunities.org/id/metropolitan-district-council/wolverhampton","719527","Water Plus","01408480_300590928X","1,735.16","Water Charges","190482864","18/07/2018","Corporate Asset Management","Central Utilities to Recharge","R2400"
"Wolverhampton City Council","http://opendatacommunities.org/id/metropolitan-district-council/wolverhampton","719527","Water Plus","01408480_300675526X","101.04","Water Charges","190482866","18/07/2018","Schools","Dovecotes Primary School","R2400"
"Wolverhampton City Council","http://opendatacommunities.org/id/metropolitan-district-council/wolverhampton","719527","Water Plus","01408480_3007530849","225.06","Water Charges","190482860","18/07/2018","Corporate Asset Management","Central Utilities to Recharge","R2400"
"Wolverhampton City Council","http://opendatacommunities.org/id/metropolitan-district-council/wolverhampton","719527","Water Plus","01207988_3006780779","37.61","Water Charges","190475670","04/07/2018","Facilities Management","Management of Vacant Properties","R2400"
"Wolverhampton City Council","http://opendatacommunities.org/id/metropolitan-district-council/wolverhampton","719527","Water Plus","01207988_3006729641","21.96","Water Charges","190475669","04/07/2018","Corporate Asset Management","Central Utilities to Recharge","R2400"
"Wolverhampton City Council","http://opendatacommunities.org/id/metropolitan-district-council/wolverhampton","719527","Water Plus","01207988_3006512707","63.21","Water Charges","190475667","04/07/2018","Corporate Asset Management","Central Utilities to Recharge","R2400"
"Wolverhampton City Council","http://opendatacommunities.org/id/metropolitan-district-council/wolverhampton","719527","Water Plus","01207988_3006517717","9.76","Water Charges","190475668","04/07/2018","Corporate Asset Management","Central Utilities to Recharge","R2400"
"Wolverhampton City Council","http://opendatacommunities.org/id/metropolitan-district-council/wolverhampton","719527","Water Plus","01207988_3006899482","5.97","Water Charges","190475671","04/07/2018","Corporate Asset Management","Central Utilities to Recharge","R2400"
"Wolverhampton City Council","http://opendatacommunities.org/id/metropolitan-district-council/wolverhampton","719527","Water Plus","01207988_3007026105","2,464.77","Water Charges","190475672","04/07/2018","Corporate Asset Management","Central Utilities to Recharge","R2400"
"Wolverhampton City Council","http://opendatacommunities.org/id/metropolitan-district-council/wolverhampton","719527","Water Plus","01018373_3005121909","258.48","Water Charges","190475684","04/07/2018","Corporate Asset Management","Central Utilities to Recharge","R2400"
"Wolverhampton City Council","http://opendatacommunities.org/id/metropolitan-district-council/wolverhampton","719527","Water Plus","01018373_3005471535","584.89","Water Charges","190475687","04/07/2018","Corporate Asset Management","Central Utilities to Recharge","R2400"
"Wolverhampton City Council","http://opendatacommunities.org/id/metropolitan-district-council/wolverhampton","719527","Water Plus","01018373_3005580059","1,253.74","Water Charges","190475690","04/07/2018","Corporate Asset Management","Central Utilities to Recharge","R2400"
"Wolverhampton City Council","http://opendatacommunities.org/id/metropolitan-district-council/wolverhampton","719527","Water Plus","01018373_3005512495","373.92","Water Charges","190475689","04/07/2018","Corporate Asset Management","Central Utilities to Recharge","R2400"
"Wolverhampton City Council","http://opendatacommunities.org/id/metropolitan-district-council/wolverhampton","719527","Water Plus","01018373_3006043154","6.61","Water Charges","190475693","04/07/2018","Corporate Asset Management","Central Utilities to Recharge","R2400"
"Wolverhampton City Council","http://opendatacommunities.org/id/metropolitan-district-council/wolverhampton","719527","Water Plus","01018373_3006616014","468.46","Water Charges","190475703","04/07/2018","Corporate Asset Management","Central Utilities to Recharge","R2400"
"Wolverhampton City Council","http://opendatacommunities.org/id/metropolitan-district-council/wolverhampton","719527","Water Plus","01018373_3006473213","515.26","Water Charges","190475698","04/07/2018","Corporate Asset Management","Central Utilities to Recharge","R2400"
"Wolverhampton City Council","http://opendatacommunities.org/id/metropolitan-district-council/wolverhampton","719527","Water Plus","01018373_3006476786","837.47","Water Charges","190475700","04/07/2018","Corporate Asset Management","Central Utilities to Recharge","R2400"
"Wolverhampton City Council","http://opendatacommunities.org/id/metropolitan-district-council/wolverhampton","719527","Water Plus","01018373_3006512707","69.97","Water Charges","190475701","04/07/2018","Corporate Asset Management","Central Utilities to Recharge","R2400"
"Wolverhampton City Council","http://opendatacommunities.org/id/metropolitan-district-council/wolverhampton","719527","Water Plus","01223263_3007146836","50.21","Water Charges","190475617","04/07/2018","Schools","Whitgreave Infant School","R2400"
"Wolverhampton City Council","http://opendatacommunities.org/id/metropolitan-district-council/wolverhampton","719527","Water Plus","01223263_3005255301","7.96","Water Charges","190475605","04/07/2018","Corporate Asset Management","Central Utilities to Recharge","R2400"
"Wolverhampton City Council","http://opendatacommunities.org/id/metropolitan-district-council/wolverhampton","719527","Water Plus","01223263_3007160103","1,628.24","Water Charges","190475618","04/07/2018","Schools","Rakegate Primary School","R2400"
"Wolverhampton City Council","http://opendatacommunities.org/id/metropolitan-district-council/wolverhampton","719527","Water Plus","01223263_3007097886","818.63","Water Charges","190475615","04/07/2018","Corporate Asset Management","Central Utilities to Recharge","R2400"
"Wolverhampton City Council","http://opendatacommunities.org/id/metropolitan-district-council/wolverhampton","719527","Water Plus","01248703_3006474961","285.33","Water Charges","190475627","04/07/2018","Corporate Asset Management","Central Utilities to Recharge","R2400"
"Wolverhampton City Council","http://opendatacommunities.org/id/metropolitan-district-council/wolverhampton","719527","Water Plus","01239543_3007238951","473.54","Water Charges","190475648","04/07/2018","Corporate Asset Management","Central Utilities to Recharge","R2400"
"Wolverhampton City Council","http://opendatacommunities.org/id/metropolitan-district-council/wolverhampton","719527","Water Plus","01239543_300726507X","95.53","Water Charges","190475654","04/07/2018","Corporate Asset Management","Central Utilities to Recharge","R2400"
"Wolverhampton City Council","http://opendatacommunities.org/id/metropolitan-district-council/wolverhampton","719527","Water Plus","01018373_3006747704","270.38","Water Charges","190475706","04/07/2018","Corporate Asset Management","Central Utilities to Recharge","R2400"
"Wolverhampton City Council","http://opendatacommunities.org/id/metropolitan-district-council/wolverhampton","719527","Water Plus","01018373_3006906209","992.96","Water Charges","190475711","04/07/2018","Corporate Asset Management","Central Utilities to Recharge","R2400"
"Wolverhampton City Council","http://opendatacommunities.org/id/metropolitan-district-council/wolverhampton","719527","Water Plus","01018373_3007801125","484.07","Water Charges","190475718","04/07/2018","Corporate Asset Management","Central Utilities to Recharge","R2400"
"Wolverhampton City Council","http://opendatacommunities.org/id/metropolitan-district-council/wolverhampton","719527","Water Plus","01018373_3007250404","1,190.41","Water Charges","190475716","04/07/2018","Corporate Asset Management","Central Utilities to Recharge","R2400"
"Wolverhampton City Council","http://opendatacommunities.org/id/metropolitan-district-council/wolverhampton","719527","Water Plus","01018373_3007822386","24.31","Water Charges","190475720","04/07/2018","Corporate Asset Management","Central Utilities to Recharge","R2400"
"Wolverhampton City Council","http://opendatacommunities.org/id/metropolitan-district-council/wolverhampton","719527","Water Plus","01018373_300590928X","1,924.81","Water Charges","190475723","04/07/2018","Corporate Asset Management","Central Utilities to Recharge","R2400"
"Wolverhampton City Council","http://opendatacommunities.org/id/metropolitan-district-council/wolverhampton","719527","Water Plus","01018373_300679088X","420.87","Water Charges","190475726","04/07/2018","Corporate Asset Management","Central Utilities to Recharge","R2400"
"Wolverhampton City Council","http://opendatacommunities.org/id/metropolitan-district-council/wolverhampton","719527","Water Plus","01223236_3007208890","5,328.48","Water Charges","190481145","06/07/2018","Schools","St Alban�s Church of England Primary School","R2400"
"Wolverhampton City Council","http://opendatacommunities.org/id/metropolitan-district-council/wolverhampton","719527","Water Plus","01223236_3005474925","1,809.15","Water Charges","190481142","06/07/2018","Corporate Asset Management","Central Utilities to Recharge","R2400"
"Wolverhampton City Council","http://opendatacommunities.org/id/metropolitan-district-council/wolverhampton","719527","Water Plus","01443030_3005471462","6,010.38","Water Charges","190482873","11/07/2018","Corporate Asset Management","Central Utilities to Recharge","R2400"
"Wolverhampton City Council","http://opendatacommunities.org/id/metropolitan-district-council/wolverhampton","719527","Water Plus","01443030_3006801555","445.99","Water Charges","190482879","11/07/2018","Corporate Asset Management","Central Utilities to Recharge","R2400"
"Wolverhampton City Council","http://opendatacommunities.org/id/metropolitan-district-council/wolverhampton","719527","Water Plus","01443030_3005255301","8.81","Water Charges","190482871","11/07/2018","Corporate Asset Management","Central Utilities to Recharge","R2400"
"Wolverhampton City Council","http://opendatacommunities.org/id/metropolitan-district-council/wolverhampton","719527","Water Plus","01443030_3005805786","580.36","Water Charges","190482876","11/07/2018","Schools","Bushbury Hill Primary School","R2400"
"Wolverhampton City Council","http://opendatacommunities.org/id/metropolitan-district-council/wolverhampton","719527","Water Plus","01443030_3005909301","948.73","Water Charges","190482877","11/07/2018","Corporate Asset Management","Central Utilities to Recharge","R2400"
"Wolverhampton City Council","http://opendatacommunities.org/id/metropolitan-district-council/wolverhampton","719527","Water Plus","01408480_3006043154","13.42","Water Charges","190482831","18/07/2018","Corporate Asset Management","Central Utilities to Recharge","R2400"
"Wolverhampton City Council","http://opendatacommunities.org/id/metropolitan-district-council/wolverhampton","719527","Water Plus","01408480_3005474925","266.71","Water Charges","190482827","18/07/2018","Corporate Asset Management","Central Utilities to Recharge","R2400"
"Wolverhampton City Council","http://opendatacommunities.org/id/metropolitan-district-council/wolverhampton","719527","Water Plus","01408480_3005471535","579.20","Water Charges","190482826","18/07/2018","Corporate Asset Management","Central Utilities to Recharge","R2400"
"Wolverhampton City Council","http://opendatacommunities.org/id/metropolitan-district-council/wolverhampton","719527","Water Plus","01408480_3006451856","95.47","Water Charges","190482839","18/07/2018","Corporate Asset Management","Central Utilities to Recharge","R2400"
"Wolverhampton City Council","http://opendatacommunities.org/id/metropolitan-district-council/wolverhampton","719527","Water Plus","01408480_3006451821","84.88","Water Charges","190482838","18/07/2018","Corporate Asset Management","Central Utilities to Recharge","R2400"
"Wolverhampton City Council","http://opendatacommunities.org/id/metropolitan-district-council/wolverhampton","719527","Water Plus","01408480_3005172856","232.45","Water Charges","190482824","18/07/2018","Corporate Asset Management","Central Utilities to Recharge","R2400"
"Wolverhampton City Council","http://opendatacommunities.org/id/metropolitan-district-council/wolverhampton","719527","Water Plus","01408480_3005177610","108.03","Water Charges","190482825","18/07/2018","Corporate Asset Management","Central Utilities to Recharge","R2400"
"Wolverhampton City Council","http://opendatacommunities.org/id/metropolitan-district-council/wolverhampton","719527","Water Plus","01408480_3006711610","146.50","Water Charges","190482850","18/07/2018","Corporate Asset Management","Central Utilities to Recharge","R2400"
"Wolverhampton City Council","http://opendatacommunities.org/id/metropolitan-district-council/wolverhampton","719527","Water Plus","01408480_3006616073","342.37","Water Charges","190482848","18/07/2018","Corporate Asset Management","Central Utilities to Recharge","R2400"
"Wolverhampton City Council","http://opendatacommunities.org/id/metropolitan-district-council/wolverhampton","719527","Water Plus","01408480_3006473108","402.30","Water Charges","190482841","18/07/2018","Corporate Asset Management","Central Utilities to Recharge","R2400"
"Wolverhampton City Council","http://opendatacommunities.org/id/metropolitan-district-council/wolverhampton","719527","Water Plus","01408480_300651467X","49.25","Water Charges","190482865","18/07/2018","Corporate Asset Management","Central Utilities to Recharge","R2400"
"Wolverhampton City Council","http://opendatacommunities.org/id/metropolitan-district-council/wolverhampton","719527","Water Plus","01223263_3006171012","21.96","Water Charges","190475612","04/07/2018","Corporate Asset Management","Central Utilities to Recharge","R2400"
"Wolverhampton City Council","http://opendatacommunities.org/id/metropolitan-district-council/wolverhampton","719527","Water Plus","01223263_3005702227","2.72","Water Charges","190475609","04/07/2018","Schools","Eastfield Nursery","R2400"
"Wolverhampton City Council","http://opendatacommunities.org/id/metropolitan-district-council/wolverhampton","719527","Water Plus","01248703_3006738748","887.80","Water Charges","190475628","04/07/2018","Corporate Asset Management","Central Utilities to Recharge","R2400"
"Wolverhampton City Council","http://opendatacommunities.org/id/metropolitan-district-council/wolverhampton","719527","Water Plus","01208651_300663084X","-18.41","Water Charges","190475631","04/07/2018","Corporate Asset Management","Central Utilities to Recharge","R2400"
"Wolverhampton City Council","http://opendatacommunities.org/id/metropolitan-district-council/wolverhampton","719527","Water Plus","01207988_3005172856","394.85","Water Charges","190475662","04/07/2018","Corporate Asset Management","Central Utilities to Recharge","R2400"
"Wolverhampton City Council","http://opendatacommunities.org/id/metropolitan-district-council/wolverhampton","719527","Water Plus","01207988_3005908062","3,105.87","Water Charges","190475665","04/07/2018","Corporate Asset Management","Central Utilities to Recharge","R2400"
"Wolverhampton City Council","http://opendatacommunities.org/id/metropolitan-district-council/wolverhampton","719527","Water Plus","01207988_3007048699","969.82","Water Charges","190475673","04/07/2018","Corporate Asset Management","Central Utilities to Recharge","R2400"
"Wolverhampton City Council","http://opendatacommunities.org/id/metropolitan-district-council/wolverhampton","719527","Water Plus","01207988_300675526X","45.06","Water Charges","190475678","04/07/2018","Schools","Dovecotes Primary School","R2400"
"Wolverhampton City Council","http://opendatacommunities.org/id/metropolitan-district-council/wolverhampton","719527","Water Plus","01018373_3005172856","210.09","Water Charges","190475685","04/07/2018","Corporate Asset Management","Central Utilities to Recharge","R2400"
"Wolverhampton City Council","http://opendatacommunities.org/id/metropolitan-district-council/wolverhampton","719527","Water Plus","01018373_3006022645","230.27","Water Charges","190475692","04/07/2018","Corporate Asset Management","Central Utilities to Recharge","R2400"
"Wolverhampton City Council","http://opendatacommunities.org/id/metropolitan-district-council/wolverhampton","719527","Water Plus","01018373_3006630890","482.43","Water Charges","190475704","04/07/2018","Corporate Asset Management","Central Utilities to Recharge","R2400"
"Wolverhampton City Council","http://opendatacommunities.org/id/metropolitan-district-council/wolverhampton","719527","Water Plus","01018373_3006314808","3,385.19","Water Charges","190475697","04/07/2018","Corporate Asset Management","Central Utilities to Recharge","R2400"
"Wolverhampton City Council","http://opendatacommunities.org/id/metropolitan-district-council/wolverhampton","719527","Water Plus","01018373_3007123011","1,766.91","Water Charges","190475712","04/07/2018","Corporate Asset Management","Central Utilities to Recharge","R2400"
"Wolverhampton City Council","http://opendatacommunities.org/id/metropolitan-district-council/wolverhampton","719527","Water Plus","01018373_3006896750","905.43","Water Charges","190475709","04/07/2018","Corporate Asset Management","Central Utilities to Recharge","R2400"
"Wolverhampton City Council","http://opendatacommunities.org/id/metropolitan-district-council/wolverhampton","719527","Water Plus","01018373_3006780779","41.64","Water Charges","190475707","04/07/2018","Facilities Management","Management of Vacant Properties","R2400"
"Wolverhampton City Council","http://opendatacommunities.org/id/metropolitan-district-council/wolverhampton","719527","Water Plus","01018373_3007237602","484.07","Water Charges","190475713","04/07/2018","Corporate Asset Management","Central Utilities to Recharge","R2400"
"Wolverhampton City Council","http://opendatacommunities.org/id/metropolitan-district-council/wolverhampton","719527","Water Plus","01018373_3007250447","487.10","Water Charges","190475717","04/07/2018","Corporate Asset Management","Central Utilities to Recharge","R2400"
"Wolverhampton City Council","http://opendatacommunities.org/id/metropolitan-district-council/wolverhampton","719527","Water Plus","01018373_300559209X","246.00","Water Charges","190475722","04/07/2018","Facilities Management","Management of Vacant Properties","R2400"
"Wolverhampton City Council","http://opendatacommunities.org/id/metropolitan-district-council/wolverhampton","719527","Water Plus","01018373_300651467X","24.31","Water Charges","190475724","04/07/2018","Corporate Asset Management","Central Utilities to Recharge","R2400"
"Wolverhampton City Council","http://opendatacommunities.org/id/metropolitan-district-council/wolverhampton","719527","Water Plus","01018373_300675526X","49.89","Water Charges","190475725","04/07/2018","Schools","Dovecotes Primary School","R2400"
"Wolverhampton City Council","http://opendatacommunities.org/id/metropolitan-district-council/wolverhampton","719527","Water Plus","01443030_3007243548","10.93","Water Charges","190482887","11/07/2018","Corporate Asset Management","Central Utilities to Recharge","R2400"
"Wolverhampton City Council","http://opendatacommunities.org/id/metropolitan-district-council/wolverhampton","719527","Water Plus","01443030_3006171012","24.22","Water Charges","190482878","11/07/2018","Corporate Asset Management","Central Utilities to Recharge","R2400"
"Wolverhampton City Council","http://opendatacommunities.org/id/metropolitan-district-council/wolverhampton","719527","Water Plus","01443030_3006962710","73.30","Water Charges","190482880","11/07/2018","Schools","Springvale Primary School","R2400"
"Wolverhampton City Council","http://opendatacommunities.org/id/metropolitan-district-council/wolverhampton","719527","Water Plus","01443030_3007314372","3.16","Water Charges","190482888","11/07/2018","Corporate Asset Management","Central Utilities to Recharge","R2400"
"Wolverhampton City Council","http://opendatacommunities.org/id/metropolitan-district-council/wolverhampton","719527","Water Plus","01443030_3007099110","167.02","Water Charges","190482883","11/07/2018","Schools","Fallings Park Primary School","R2400"
"Wolverhampton City Council","http://opendatacommunities.org/id/metropolitan-district-council/wolverhampton","719527","Water Plus","01443030_3005254062","1,713.51","Water Charges","190482869","11/07/2018","Schools","Castlecroft Primary School","R2400"
"Wolverhampton City Council","http://opendatacommunities.org/id/metropolitan-district-council/wolverhampton","719527","Water Plus","01239543_3006729641","24.31","Water Charges","190475641","04/07/2018","Corporate Asset Management","Central Utilities to Recharge","R2400"
"Wolverhampton City Council","http://opendatacommunities.org/id/metropolitan-district-council/wolverhampton","719527","Water Plus","01239543_3006517717","10.80","Water Charges","190475639","04/07/2018","Corporate Asset Management","Central Utilities to Recharge","R2400"
"Wolverhampton City Council","http://opendatacommunities.org/id/metropolitan-district-council/wolverhampton","719527","Water Plus","01239543_3006780779","33.30","Water Charges","190475642","04/07/2018","Facilities Management","Management of Vacant Properties","R2400"
"Wolverhampton City Council","http://opendatacommunities.org/id/metropolitan-district-council/wolverhampton","719527","Water Plus","01239543_3007802563","473.54","Water Charges","190475650","04/07/2018","Corporate Asset Management","Central Utilities to Recharge","R2400"
"Wolverhampton City Council","http://opendatacommunities.org/id/metropolitan-district-council/wolverhampton","719527","Water Plus","01239543_3006835913","1,814.61","Water Charges","190475643","04/07/2018","Corporate Asset Management","Central Utilities to Recharge","R2400"
"Wolverhampton City Council","http://opendatacommunities.org/id/metropolitan-district-council/wolverhampton","719527","Water Plus","01239543_3005835146","163.11","Water Charges","190475634","04/07/2018","Corporate Asset Management","Central Utilities to Recharge","R2400"
"Wolverhampton City Council","http://opendatacommunities.org/id/metropolitan-district-council/wolverhampton","719527","Water Plus","01239543_3005172856","540.77","Water Charges","190475632","04/07/2018","Corporate Asset Management","Central Utilities to Recharge","R2400"
"Wolverhampton City Council","http://opendatacommunities.org/id/metropolitan-district-council/wolverhampton","719527","Water Plus","01239543_3006182952","69.10","Water Charges","190475637","04/07/2018","Corporate Asset Management","Central Utilities to Recharge","R2400"
"Wolverhampton City Council","http://opendatacommunities.org/id/metropolitan-district-council/wolverhampton","719527","Water Plus","01239543_3006043154","6.61","Water Charges","190475635","04/07/2018","Corporate Asset Management","Central Utilities to Recharge","R2400"
"Wolverhampton City Council","http://opendatacommunities.org/id/metropolitan-district-council/wolverhampton","719527","Water Plus","01223236_3007123011","772.68","Water Charges","190481144","06/07/2018","Corporate Asset Management","Central Utilities to Recharge","R2400"
"Wolverhampton City Council","http://opendatacommunities.org/id/metropolitan-district-council/wolverhampton","719527","Water Plus","01223236_300679088X","346.43","Water Charges","190481147","06/07/2018","Corporate Asset Management","Central Utilities to Recharge","R2400"
"Wolverhampton City Council","http://opendatacommunities.org/id/metropolitan-district-council/wolverhampton","719527","Water Plus","01408480_3005908062","3,855.77","Water Charges","190482830","18/07/2018","Corporate Asset Management","Central Utilities to Recharge","R2400"
"Wolverhampton City Council","http://opendatacommunities.org/id/metropolitan-district-council/wolverhampton","719527","Water Plus","01408480_3006451953","1,468.44","Water Charges","190482840","18/07/2018","Corporate Asset Management","Central Utilities to Recharge","R2400"
"Wolverhampton City Council","http://opendatacommunities.org/id/metropolitan-district-council/wolverhampton","719527","Water Plus","01408480_3006317009","412.09","Water Charges","190482837","18/07/2018","Corporate Asset Management","Central Utilities to Recharge","R2400"
"Wolverhampton City Council","http://opendatacommunities.org/id/metropolitan-district-council/wolverhampton","719527","Water Plus","01408480_3006201876","211.16","Water Charges","190482834","18/07/2018","Corporate Asset Management","Central Utilities to Recharge","R2400"
"Wolverhampton City Council","http://opendatacommunities.org/id/metropolitan-district-council/wolverhampton","719527","Water Plus","01408480_3006217276","149.36","Water Charges","190482835","18/07/2018","Corporate Asset Management","Central Utilities to Recharge","R2400"
"Wolverhampton City Council","http://opendatacommunities.org/id/metropolitan-district-council/wolverhampton","719527","Water Plus","01408480_3006762371","153.32","Water Charges","190482853","18/07/2018","Corporate Asset Management","Central Utilities to Recharge","R2400"
"Wolverhampton City Council","http://opendatacommunities.org/id/metropolitan-district-council/wolverhampton","719527","Water Plus","01408480_3006747488","127.39","Water Charges","190482852","18/07/2018","Corporate Asset Management","Central Utilities to Recharge","R2400"
"Wolverhampton City Council","http://opendatacommunities.org/id/metropolitan-district-council/wolverhampton","719527","Water Plus","01408480_3006587502","2,384.82","Water Charges","190482847","18/07/2018","Corporate Asset Management","Central Utilities to Recharge","R2400"
"Wolverhampton City Council","http://opendatacommunities.org/id/metropolitan-district-council/wolverhampton","719527","Water Plus","01408480_300548825X","1,000.40","Water Charges","190482863","18/07/2018","Corporate Asset Management","Central Utilities to Recharge","R2400"
"Wolverhampton City Council","http://opendatacommunities.org/id/metropolitan-district-council/wolverhampton","719527","Water Plus","01408480_3007823870","237.11","Water Charges","190482862","18/07/2018","Corporate Asset Management","Central Utilities to Recharge","R2400"
"Wolverhampton City Council","http://opendatacommunities.org/id/metropolitan-district-council/wolverhampton","719527","Water Plus","01408480_3007822386","49.25","Water Charges","190482861","18/07/2018","Corporate Asset Management","Central Utilities to Recharge","R2400"
"Wolverhampton City Council","http://opendatacommunities.org/id/metropolitan-district-council/wolverhampton","719527","Water Plus","01239543_3006512707","69.97","Water Charges","190475638","04/07/2018","Corporate Asset Management","Central Utilities to Recharge","R2400"
"Wolverhampton City Council","http://opendatacommunities.org/id/metropolitan-district-council/wolverhampton","719527","Water Plus","01239543_3006519310","957.62","Water Charges","190475640","04/07/2018","Corporate Asset Management","Central Utilities to Recharge","R2400"
"Wolverhampton City Council","http://opendatacommunities.org/id/metropolitan-district-council/wolverhampton","719527","Water Plus","01239543_3007049415","410.82","Water Charges","190475646","04/07/2018","Corporate Asset Management","Central Utilities to Recharge","R2400"
"Wolverhampton City Council","http://opendatacommunities.org/id/metropolitan-district-council/wolverhampton","719527","Water Plus","01239543_3007801125","473.54","Water Charges","190475649","04/07/2018","Corporate Asset Management","Central Utilities to Recharge","R2400"
"Wolverhampton City Council","http://opendatacommunities.org/id/metropolitan-district-council/wolverhampton","719527","Water Plus","01239543_300651467X","24.31","Water Charges","190475652","04/07/2018","Corporate Asset Management","Central Utilities to Recharge","R2400"
"Wolverhampton City Council","http://opendatacommunities.org/id/metropolitan-district-council/wolverhampton","719527","Water Plus","01239543_3005184293","1,814.61","Water Charges","190475633","04/07/2018","Corporate Asset Management","Central Utilities to Recharge","R2400"
"Wolverhampton City Council","http://opendatacommunities.org/id/metropolitan-district-council/wolverhampton","719527","Water Plus","01223263_3005909301","1,049.97","Water Charges","190475611","04/07/2018","Corporate Asset Management","Central Utilities to Recharge","R2400"
"Wolverhampton City Council","http://opendatacommunities.org/id/metropolitan-district-council/wolverhampton","719527","Water Plus","01223263_3005456498","5,074.76","Water Charges","190475606","04/07/2018","Schools","Springdale Primary School","R2400"
"Wolverhampton City Council","http://opendatacommunities.org/id/metropolitan-district-council/wolverhampton","719527","Water Plus","01248703_3006182723","95.00","Water Charges","190475624","04/07/2018","Corporate Asset Management","Central Utilities to Recharge","R2400"
"Wolverhampton City Council","http://opendatacommunities.org/id/metropolitan-district-council/wolverhampton","719527","Water Plus","01248703_3005064034","1,749.81","Water Charges","190475621","04/07/2018","Corporate Asset Management","Central Utilities to Recharge","R2400"
"Wolverhampton City Council","http://opendatacommunities.org/id/metropolitan-district-council/wolverhampton","719527","Water Plus","01248703_3005895335","367.39","Water Charges","190475622","04/07/2018","Corporate Asset Management","Central Utilities to Recharge","R2400"
"Wolverhampton City Council","http://opendatacommunities.org/id/metropolitan-district-council/wolverhampton","719527","Water Plus","01248703_3006789830","1,957.75","Water Charges","190475629","04/07/2018","Corporate Asset Management","Central Utilities to Recharge","R2400"
"Wolverhampton City Council","http://opendatacommunities.org/id/metropolitan-district-council/wolverhampton","719527","Water Plus","01207988_3005835146","147.33","Water Charges","190475664","04/07/2018","Corporate Asset Management","Central Utilities to Recharge","R2400"
"Wolverhampton City Council","http://opendatacommunities.org/id/metropolitan-district-council/wolverhampton","719527","Water Plus","01207988_3005551016","3,771.65","Water Charges","190475663","04/07/2018","Facilities Management","Management of Vacant Properties","R2400"
"Wolverhampton City Council","http://opendatacommunities.org/id/metropolitan-district-council/wolverhampton","719527","Water Plus","01207988_300663084X","17.82","Water Charges","190475677","04/07/2018","Corporate Asset Management","Central Utilities to Recharge","R2400"
"Wolverhampton City Council","http://opendatacommunities.org/id/metropolitan-district-council/wolverhampton","719527","Water Plus","01207988_3007822386","21.96","Water Charges","190475674","04/07/2018","Corporate Asset Management","Central Utilities to Recharge","R2400"
"Wolverhampton City Council","http://opendatacommunities.org/id/metropolitan-district-council/wolverhampton","719527","Water Plus","01018373_3005105849","253.76","Water Charges","190475682","04/07/2018","Corporate Asset Management","Central Utilities to Recharge","R2400"
"Wolverhampton City Council","http://opendatacommunities.org/id/metropolitan-district-council/wolverhampton","719527","Water Plus","01018373_3005111903","1,388.84","Water Charges","190475683","04/07/2018","Corporate Asset Management","Central Utilities to Recharge","R2400"
"Wolverhampton City Council","http://opendatacommunities.org/id/metropolitan-district-council/wolverhampton","719527","Water Plus","01018373_3005040674","90.66","Water Charges","190475680","04/07/2018","Corporate Asset Management","Central Utilities to Recharge","R2400"
"Wolverhampton City Council","http://opendatacommunities.org/id/metropolitan-district-council/wolverhampton","719527","Water Plus","01018373_3005474925","1,207.37","Water Charges","190475688","04/07/2018","Corporate Asset Management","Central Utilities to Recharge","R2400"
"Wolverhampton City Council","http://opendatacommunities.org/id/metropolitan-district-council/wolverhampton","719527","Water Plus","01018373_3006068084","297.37","Water Charges","190475694","04/07/2018","Corporate Asset Management","Central Utilities to Recharge","R2400"
"Wolverhampton City Council","http://opendatacommunities.org/id/metropolitan-district-council/wolverhampton","719527","Water Plus","01018373_3006517717","10.80","Water Charges","190475702","04/07/2018","Corporate Asset Management","Central Utilities to Recharge","R2400"
"Wolverhampton City Council","http://opendatacommunities.org/id/metropolitan-district-council/wolverhampton","719527","Water Plus","01018373_3006476573","134.67","Water Charges","190475699","04/07/2018","Corporate Asset Management","Central Utilities to Recharge","R2400"
"Wolverhampton City Council","http://opendatacommunities.org/id/metropolitan-district-council/wolverhampton","719527","Water Plus","01018373_3006899482","6.61","Water Charges","190475710","04/07/2018","Corporate Asset Management","Central Utilities to Recharge","R2400"
"Wolverhampton City Council","http://opendatacommunities.org/id/metropolitan-district-council/wolverhampton","719527","Water Plus","01018373_3006789830","600.14","Water Charges","190475708","04/07/2018","Corporate Asset Management","Central Utilities to Recharge","R2400"
"Wolverhampton City Council","http://opendatacommunities.org/id/metropolitan-district-council/wolverhampton","719527","Water Plus","01018373_3007802563","484.07","Water Charges","190475719","04/07/2018","Corporate Asset Management","Central Utilities to Recharge","R2400"
"Wolverhampton City Council","http://opendatacommunities.org/id/metropolitan-district-council/wolverhampton","719527","Water Plus","01018373_300548999X","420.84","Water Charges","190475721","04/07/2018","Corporate Asset Management","Central Utilities to Recharge","R2400"
"Wolverhampton City Council","http://opendatacommunities.org/id/metropolitan-district-council/wolverhampton","719527","Water Plus","01018674_3006476786","231.60","Water Charges","190475727","04/07/2018","Corporate Asset Management","Central Utilities to Recharge","R2400"
"Wolverhampton City Council","http://opendatacommunities.org/id/metropolitan-district-council/wolverhampton","719527","Water Plus","01443030_3007097886","1,965.01","Water Charges","190482882","11/07/2018","Corporate Asset Management","Central Utilities to Recharge","R2400"
"Wolverhampton City Council","http://opendatacommunities.org/id/metropolitan-district-council/wolverhampton","719527","Water Plus","01443030_300543639X","236.30","Water Charges","190482872","11/07/2018","Corporate Asset Management","Central Utilities to Recharge","R2400"
"Wolverhampton City Council","http://opendatacommunities.org/id/metropolitan-district-council/wolverhampton","719527","Water Plus","01443030_3005254100","1,607.48","Water Charges","190482870","11/07/2018","Schools","Uplands Junior School","R2400"
"Wolverhampton City Council","http://opendatacommunities.org/id/metropolitan-district-council/wolverhampton","719527","Water Plus","01443030_300557850X","34.53","Water Charges","190482874","11/07/2018","Facilities Management","Management of Vacant Properties","R2400"
"Wolverhampton City Council","http://opendatacommunities.org/id/metropolitan-district-council/wolverhampton","719527","Water Plus","01443030_3005702227","3.03","Water Charges","190482875","11/07/2018","Schools","Eastfield Nursery","R2400"
"Wolverhampton City Council","http://opendatacommunities.org/id/metropolitan-district-council/wolverhampton","719527","Water Plus","01223236_3005908062","1,202.19","Water Charges","190481143","06/07/2018","Corporate Asset Management","Central Utilities to Recharge","R2400"
"Wolverhampton City Council","http://opendatacommunities.org/id/metropolitan-district-council/wolverhampton","719527","Water Plus","01223236_3005252175","12,484.23","Water Charges","190481140","06/07/2018","Schools","Penn Hall Special School","R2400"
"Wolverhampton City Council","http://opendatacommunities.org/id/metropolitan-district-council/wolverhampton","719533","Georgina Davies","TFT Summer 2018 Inst 2","377.28","TPP - Private Nursery Education Funding","190489836","25/07/2018","Early Years","Early Years Entitlement Funding for Disadvantaged 2 Year Olds","R5035"
"Wolverhampton City Council","http://opendatacommunities.org/id/metropolitan-district-council/wolverhampton","719533","Georgina Davies","NEF Summer 2018 INST 2","2,575.50","TPP - Private Nursery Education Funding","190489824","25/07/2018","Early Years","Early Years Universal Entitlement for 3 and 4 Year Olds","R5035"
"Wolverhampton City Council","http://opendatacommunities.org/id/metropolitan-district-council/wolverhampton","719543","ION Projects Limited","537","133,383.62","Construction and Conversion","130221962","18/07/2018","-","GF - Interchange - Ph2 Train Station/MSCP/Metro Extension","C1100"
"Wolverhampton City Council","http://opendatacommunities.org/id/metropolitan-district-council/wolverhampton","719556","Care and Independence Ltd","0000015270","149.00","Equipment - Purchase","130220325","13/07/2018","Independent Living Service","Independent Living Service","R4000"
"Wolverhampton City Council","http://opendatacommunities.org/id/metropolitan-district-council/wolverhampton","719556","Care and Independence Ltd","0000015270","12.50","Equipment - Purchase","130220325","13/07/2018","Independent Living Service","Independent Living Service","R4000"
"Wolverhampton City Council","http://opendatacommunities.org/id/metropolitan-district-council/wolverhampton","719556","Care and Independence Ltd","0000015650","524.32","Equipment - Purchase","130221420","25/07/2018","Independent Living Service","Independent Living Service","R4000"
"Wolverhampton City Council","http://opendatacommunities.org/id/metropolitan-district-council/wolverhampton","719556","Care and Independence Ltd","0000015650","12.50","Equipment - Purchase","130221420","25/07/2018","Independent Living Service","Independent Living Service","R4000"
"Wolverhampton City Council","http://opendatacommunities.org/id/metropolitan-district-council/wolverhampton","719559","Good Shepherd Ministry (New Contract)","0015","4,450.83","Grant Payments","190475769","04/07/2018","Housing Revenue Account","Single non statutory homelessness","R4700"
"Wolverhampton City Council","http://opendatacommunities.org/id/metropolitan-district-council/wolverhampton","719562","Ashcroft Hollow Nursing Home","P177487 22071820180703","2,259.43","TPP - Nursing Care - Long Term","190476037","04/07/2018","Older People Care Purchasing","OP Care Purchasing (Spot Placements)","R5410"
"Wolverhampton City Council","http://opendatacommunities.org/id/metropolitan-district-council/wolverhampton","719570","Grayson Design & Print Ltd","36195","205.00","Printing","130220326","18/07/2018","ICTS","Document Centre - General","R4300"
"Wolverhampton City Council","http://opendatacommunities.org/id/metropolitan-district-council/wolverhampton","719570","Grayson Design & Print Ltd","36009","415.70","Printing","130218813","04/07/2018","ICTS","Document Centre - General","R4300"
"Wolverhampton City Council","http://opendatacommunities.org/id/metropolitan-district-council/wolverhampton","719570","Grayson Design & Print Ltd","36156","1,532.16","Printing","130219986","18/07/2018","ICTS","Document Centre - General","R4300"
"Wolverhampton City Council","http://opendatacommunities.org/id/metropolitan-district-council/wolverhampton","719605","Alyson Sayers Safeguarding Ltd","AS300","1,400.00","Training Expenses","130221223","18/07/2018","Early Years","Early Years & Universal Service","R1650"
"Wolverhampton City Council","http://opendatacommunities.org/id/metropolitan-district-council/wolverhampton","719668","St Stephens C Of E Primary","St Stephen�s Academy Early Years Payment Summer Term 2018-19","42,618.60","Grant Payments","190484574","13/07/2018","Central Education","Academy Early years","R4700"
"Wolverhampton City Council","http://opendatacommunities.org/id/metropolitan-district-council/wolverhampton","719668","St Stephens C Of E Primary","St Stephen�s Academy Early Years Payment Autumn Term Initerim 2018-19","17,385.90","Grant Payments","190484598","13/07/2018","Central Education","Academy Early years","R4700"
"Wolverhampton City Council","http://opendatacommunities.org/id/metropolitan-district-council/wolverhampton","719678","Pasta King (UK) Ltd","7","4,388.65","Provisions (Resale)","130222403","25/07/2018","Catering","Education Catering - General Overheads","R4102"
"Wolverhampton City Council","http://opendatacommunities.org/id/metropolitan-district-council/wolverhampton","719678","Pasta King (UK) Ltd","6","3,585.20","Provisions (Resale)","130222402","18/07/2018","Catering","Education Catering - General Overheads","R4102"
"Wolverhampton City Council","http://opendatacommunities.org/id/metropolitan-district-council/wolverhampton","719703","Zephyr Racing Pennants Ltd","1802004","512.00","Equipment - Purchase","130219816","13/07/2018","Public Service Reform","Mayoral Expenses","R4000"
"Wolverhampton City Council","http://opendatacommunities.org/id/metropolitan-district-council/wolverhampton","719703","Zephyr Racing Pennants Ltd","1802004","36.00","Equipment - Purchase","130219816","13/07/2018","Public Service Reform","Mayoral Expenses","R4000"
"Wolverhampton City Council","http://opendatacommunities.org/id/metropolitan-district-council/wolverhampton","719718","James Button & Co Solicitors","T2018/27","925.00","Training Expenses","130220607","18/07/2018","Licensing","Licensing - Private Hire Vehicles","R1650"
"Wolverhampton City Council","http://opendatacommunities.org/id/metropolitan-district-council/wolverhampton","719718","James Button & Co Solicitors","T2018/27","105.38","Training Expenses","130220607","18/07/2018","Licensing","Licensing - Private Hire Vehicles","R1650"
"Wolverhampton City Council","http://opendatacommunities.org/id/metropolitan-district-council/wolverhampton","719751","Green Park Interim & Executive Limited","44536","18,900.00","Agency Staff","130221037","25/07/2018","Waste and Recycling Service","Waste Collection and Recycling Service - General","R1100"
"Wolverhampton City Council","http://opendatacommunities.org/id/metropolitan-district-council/wolverhampton","719755","Goodchilds Estate Agents (W�ton) Ltd","11","395.00","No Recourse to Public Funds","130219346","04/07/2018","Child Protection","CIN/CP Social Work Unit - Area 6","R6314"
"Wolverhampton City Council","http://opendatacommunities.org/id/metropolitan-district-council/wolverhampton","719777","Spaldings Limited","SI-2318577","26.00","Equipment - Purchase","190481485","06/07/2018","Fleet Services","Fleet Management","R4000"
"Wolverhampton City Council","http://opendatacommunities.org/id/metropolitan-district-council/wolverhampton","719777","Spaldings Limited","SI-2318577","29.00","Equipment - Purchase","190481485","06/07/2018","Fleet Services","Fleet Management","R4000"
"Wolverhampton City Council","http://opendatacommunities.org/id/metropolitan-district-council/wolverhampton","719777","Spaldings Limited","SI-2318576","389.20","Equipment - Purchase","190486346","23/07/2018","Fleet Services","Fleet Management","R4000"
"Wolverhampton City Council","http://opendatacommunities.org/id/metropolitan-district-council/wolverhampton","719777","Spaldings Limited","SI-2318576","193.20","Equipment - Purchase","190486346","23/07/2018","Fleet Services","Fleet Management","R4000"
"Wolverhampton City Council","http://opendatacommunities.org/id/metropolitan-district-council/wolverhampton","719777","Spaldings Limited","SI-2318576","66.36","Equipment - Purchase","190486346","23/07/2018","Fleet Services","Fleet Management","R4000"
"Wolverhampton City Council","http://opendatacommunities.org/id/metropolitan-district-council/wolverhampton","719777","Spaldings Limited","SI-2321427","85.80","Equipment - Purchase","190483214","11/07/2018","Fleet Services","Fleet Management","R4000"
"Wolverhampton City Council","http://opendatacommunities.org/id/metropolitan-district-council/wolverhampton","719788","Art Shape Ltd","542326","510.00","Training Expenses","130221964","25/07/2018","Adult Education","Staff Development","R1650"
"Wolverhampton City Council","http://opendatacommunities.org/id/metropolitan-district-council/wolverhampton","719803","Tudor Grange Academy Worcester","P17974120180720","1,200.00","Grant Payments to Individuals","190488118","25/07/2018","Looked After Children","Pupil Premium","R6402"
"Wolverhampton City Council","http://opendatacommunities.org/id/metropolitan-district-council/wolverhampton","719814","Nayera Everby","NEF Summer 2018 INST 2","612.00","TPP - Private Nursery Education Funding","190489824","25/07/2018","Early Years","Early Years Universal Entitlement for 3 and 4 Year Olds","R5035"
"Wolverhampton City Council","http://opendatacommunities.org/id/metropolitan-district-council/wolverhampton","719819","LearnPlay Foundation","01643","799.00","Training Expenses","130222296","27/07/2018","Skills","IMPACT","R1650"
"Wolverhampton City Council","http://opendatacommunities.org/id/metropolitan-district-council/wolverhampton","719819","LearnPlay Foundation","01636","2,049.05","Training Expenses","130221526","27/07/2018","Skills","IMPACT","R1650"
"Wolverhampton City Council","http://opendatacommunities.org/id/metropolitan-district-council/wolverhampton","719819","LearnPlay Foundation","01635","799.00","Training Expenses","130221525","27/07/2018","Skills","IMPACT","R1650"
"Wolverhampton City Council","http://opendatacommunities.org/id/metropolitan-district-council/wolverhampton","719837","Arvato Limited","95507304","950.00","Training Expenses","130220717","25/07/2018","Public Service Reform","Centralised Training","R1650"
"Wolverhampton City Council","http://opendatacommunities.org/id/metropolitan-district-council/wolverhampton","719841","Osborne Richardson Limited","216393","102.00","Services - Professional Fees","130220208","18/07/2018","Public Protection","EHTS Staffing","R4400"
"Wolverhampton City Council","http://opendatacommunities.org/id/metropolitan-district-council/wolverhampton","719841","Osborne Richardson Limited","216088","270.00","Services - Professional Fees","130218814","04/07/2018","Public Protection","EHTS Staffing","R4400"
"Wolverhampton City Council","http://opendatacommunities.org/id/metropolitan-district-council/wolverhampton","719841","Osborne Richardson Limited","216089","225.00","Services - Professional Fees","130218815","04/07/2018","Public Protection","EHTS Staffing","R4400"
"Wolverhampton City Council","http://opendatacommunities.org/id/metropolitan-district-council/wolverhampton","719841","Osborne Richardson Limited","216243","384.00","Services - Professional Fees","130219347","11/07/2018","Public Protection","EHTS Staffing","R4400"
"Wolverhampton City Council","http://opendatacommunities.org/id/metropolitan-district-council/wolverhampton","719841","Osborne Richardson Limited","216546","252.00","Services - Professional Fees","130220867","25/07/2018","Public Protection","EHTS Staffing","R4400"
"Wolverhampton City Council","http://opendatacommunities.org/id/metropolitan-district-council/wolverhampton","719866","A&Y Equipment Limited","167342","23.49","Equipment - Purchase","190483147","11/07/2018","Fleet Services","Fleet Management","R4000"
"Wolverhampton City Council","http://opendatacommunities.org/id/metropolitan-district-council/wolverhampton","719866","A&Y Equipment Limited","167342","35.01","Equipment - Purchase","190483147","11/07/2018","Fleet Services","Fleet Management","R4000"
"Wolverhampton City Council","http://opendatacommunities.org/id/metropolitan-district-council/wolverhampton","719866","A&Y Equipment Limited","167342","1,157.37","Equipment - Purchase","190483147","11/07/2018","Fleet Services","Fleet Management","R4000"
"Wolverhampton City Council","http://opendatacommunities.org/id/metropolitan-district-council/wolverhampton","719866","A&Y Equipment Limited","167342","264.11","Equipment - Purchase","190483147","11/07/2018","Fleet Services","Fleet Management","R4000"
"Wolverhampton City Council","http://opendatacommunities.org/id/metropolitan-district-council/wolverhampton","719947","Street Eats Food","174801","621.55","Provisions (Resale)","130219994","13/07/2018","Catering","Education Catering - General Overheads","R4102"
"Wolverhampton City Council","http://opendatacommunities.org/id/metropolitan-district-council/wolverhampton","719947","Street Eats Food","174743","111.56","Provisions (Resale)","130219993","13/07/2018","Leisure Services","WV Active Catering - Central","R4102"
"Wolverhampton City Council","http://opendatacommunities.org/id/metropolitan-district-council/wolverhampton","719947","Street Eats Food","176675","171.17","Provisions (Resale)","130221426","27/07/2018","Catering","Meals on Wheels","R4102"
"Wolverhampton City Council","http://opendatacommunities.org/id/metropolitan-district-council/wolverhampton","719947","Street Eats Food","176676","33.32","Provisions (Resale)","130221427","27/07/2018","Catering","Meals on Wheels","R4102"
"Wolverhampton City Council","http://opendatacommunities.org/id/metropolitan-district-council/wolverhampton","719947","Street Eats Food","170724","49.80","Provisions (Resale)","130217193","06/07/2018","Catering","Meals on Wheels","R4102"
"Wolverhampton City Council","http://opendatacommunities.org/id/metropolitan-district-council/wolverhampton","719947","Street Eats Food","174120","168.30","Provisions (Resale)","130219991","06/07/2018","Catering","Meals on Wheels","R4102"
"Wolverhampton City Council","http://opendatacommunities.org/id/metropolitan-district-council/wolverhampton","719947","Street Eats Food","173884","376.28","Provisions (Resale)","130219987","06/07/2018","Leisure Services","WV Active Catering","R4102"
"Wolverhampton City Council","http://opendatacommunities.org/id/metropolitan-district-council/wolverhampton","719947","Street Eats Food","175618","259.94","Provisions (Resale)","130220450","23/07/2018","Leisure Services","WV Active Catering","R4102"
"Wolverhampton City Council","http://opendatacommunities.org/id/metropolitan-district-council/wolverhampton","719947","Street Eats Food","175741","642.89","Provisions (Resale)","130220453","23/07/2018","Catering","Education Catering - General Overheads","R4102"
"Wolverhampton City Council","http://opendatacommunities.org/id/metropolitan-district-council/wolverhampton","719947","Street Eats Food","175698","621.55","Provisions (Resale)","130220452","23/07/2018","Catering","Education Catering - General Overheads","R4102"
"Wolverhampton City Council","http://opendatacommunities.org/id/metropolitan-district-council/wolverhampton","719947","Street Eats Food","175850","264.50","Provisions (Resale)","130220458","23/07/2018","Leisure Services","Bert Williams Leisure Centre Caf�","R4102"
"Wolverhampton City Council","http://opendatacommunities.org/id/metropolitan-district-council/wolverhampton","719947","Street Eats Food","174951","166.22","Provisions (Resale)","130219818","13/07/2018","Catering","Meals on Wheels","R4102"
"Wolverhampton City Council","http://opendatacommunities.org/id/metropolitan-district-council/wolverhampton","719947","Street Eats Food","174859","594.90","Provisions (Resale)","130219995","13/07/2018","Catering","Education Catering - General Overheads","R4102"
"Wolverhampton City Council","http://opendatacommunities.org/id/metropolitan-district-council/wolverhampton","719947","Street Eats Food","176588","594.90","Provisions (Resale)","130221425","27/07/2018","Catering","Education Catering - General Overheads","R4102"
"Wolverhampton City Council","http://opendatacommunities.org/id/metropolitan-district-council/wolverhampton","719947","Street Eats Food","176450","147.91","Provisions (Resale)","130221421","27/07/2018","Leisure Services","WV Active Catering","R4102"
"Wolverhampton City Council","http://opendatacommunities.org/id/metropolitan-district-council/wolverhampton","719947","Street Eats Food","171974","45.44","Provisions (Resale)","130217320","06/07/2018","Catering","Meals on Wheels","R4102"
"Wolverhampton City Council","http://opendatacommunities.org/id/metropolitan-district-council/wolverhampton","719947","Street Eats Food","174014","814.93","Provisions (Resale)","130219080","06/07/2018","Catering","Education Catering - General Overheads","R4102"
"Wolverhampton City Council","http://opendatacommunities.org/id/metropolitan-district-council/wolverhampton","719947","Street Eats Food","174122","264.50","Provisions (Resale)","130219083","06/07/2018","Leisure Services","Bert Williams Leisure Centre Caf�","R4102"
"Wolverhampton City Council","http://opendatacommunities.org/id/metropolitan-district-council/wolverhampton","719947","Street Eats Food","174952","44.50","Provisions (Resale)","130219819","13/07/2018","Adult Education","Caf�","R4102"
"Wolverhampton City Council","http://opendatacommunities.org/id/metropolitan-district-council/wolverhampton","719947","Street Eats Food","174953","264.50","Provisions (Resale)","130219820","13/07/2018","Leisure Services","Bert Williams Leisure Centre Caf�","R4102"
"Wolverhampton City Council","http://opendatacommunities.org/id/metropolitan-district-council/wolverhampton","719947","Street Eats Food","176474","122.95","Provisions (Resale)","130221422","27/07/2018","Leisure Services","WV Active Catering - Central","R4102"
"Wolverhampton City Council","http://opendatacommunities.org/id/metropolitan-district-council/wolverhampton","719947","Street Eats Food","176535","419.64","Provisions (Resale)","130221423","27/07/2018","Catering","Education Catering - General Overheads","R4102"
"Wolverhampton City Council","http://opendatacommunities.org/id/metropolitan-district-council/wolverhampton","719947","Street Eats Food","173905","135.90","Provisions (Resale)","130219988","06/07/2018","Leisure Services","WV Active Catering - Central","R4102"
"Wolverhampton City Council","http://opendatacommunities.org/id/metropolitan-district-council/wolverhampton","719947","Street Eats Food","173965","621.55","Provisions (Resale)","130219989","06/07/2018","Catering","Education Catering - General Overheads","R4102"
"Wolverhampton City Council","http://opendatacommunities.org/id/metropolitan-district-council/wolverhampton","719947","Street Eats Food","174121","235.12","Provisions (Resale)","130219082","06/07/2018","Catering","Meals on Wheels","R4102"
"Wolverhampton City Council","http://opendatacommunities.org/id/metropolitan-district-council/wolverhampton","719947","Street Eats Food","175639","207.98","Provisions (Resale)","130220451","23/07/2018","Leisure Services","WV Active Catering - Central","R4102"
"Wolverhampton City Council","http://opendatacommunities.org/id/metropolitan-district-council/wolverhampton","719947","Street Eats Food","175849","56.02","Provisions (Resale)","130220457","23/07/2018","Catering","Meals on Wheels","R4102"
"Wolverhampton City Council","http://opendatacommunities.org/id/metropolitan-district-council/wolverhampton","719947","Street Eats Food","175848","179.35","Provisions (Resale)","130220456","23/07/2018","Catering","Meals on Wheels","R4102"
"Wolverhampton City Council","http://opendatacommunities.org/id/metropolitan-district-council/wolverhampton","719947","Street Eats Food","174845","844.26","Provisions (Resale)","130219817","13/07/2018","Catering","Education Catering - General Overheads","R4102"
"Wolverhampton City Council","http://opendatacommunities.org/id/metropolitan-district-council/wolverhampton","719947","Street Eats Food","174721","401.50","Provisions (Resale)","130219992","13/07/2018","Leisure Services","WV Active Catering","R4102"
"Wolverhampton City Council","http://opendatacommunities.org/id/metropolitan-district-council/wolverhampton","719947","Street Eats Food","176575","696.84","Provisions (Resale)","130221424","27/07/2018","Catering","Education Catering - General Overheads","R4102"
"Wolverhampton City Council","http://opendatacommunities.org/id/metropolitan-district-council/wolverhampton","719947","Street Eats Food","176677","264.50","Provisions (Resale)","130221428","27/07/2018","Leisure Services","Bert Williams Leisure Centre Caf�","R4102"
"Wolverhampton City Council","http://opendatacommunities.org/id/metropolitan-district-council/wolverhampton","719947","Street Eats Food","172433","250.40","Provisions (Resale)","130217769","06/07/2018","Catering","Meals on Wheels","R4102"
"Wolverhampton City Council","http://opendatacommunities.org/id/metropolitan-district-council/wolverhampton","719947","Street Eats Food","174119","100.00","Provisions (Resale)","130219081","06/07/2018","Catering","Civic Centre Catering","R4102"
"Wolverhampton City Council","http://opendatacommunities.org/id/metropolitan-district-council/wolverhampton","719947","Street Eats Food","174033","576.91","Provisions (Resale)","130219990","06/07/2018","Catering","Education Catering - General Overheads","R4102"
"Wolverhampton City Council","http://opendatacommunities.org/id/metropolitan-district-council/wolverhampton","719947","Street Eats Food","175847","32.04","Provisions (Resale)","130220455","23/07/2018","Catering","Civic Centre Catering","R4102"
"Wolverhampton City Council","http://opendatacommunities.org/id/metropolitan-district-council/wolverhampton","719947","Street Eats Food","175756","500.85","Provisions (Resale)","130220454","23/07/2018","Catering","Education Catering - General Overheads","R4102"
"Wolverhampton City Council","http://opendatacommunities.org/id/metropolitan-district-council/wolverhampton","719949","PurePromoter Ltd T/A Pure360","220812","224.00","Marketing \ Non-staff advertising","130219084","04/07/2018","Visitor Economy","Audience Development","R4317"
"Wolverhampton City Council","http://opendatacommunities.org/id/metropolitan-district-council/wolverhampton","719998","Perfect Circle JV Ltd","28348096","26,390.63","External Professional Fees","130216623","11/07/2018","-","Development of Cultural Estate","C6002"
"Wolverhampton City Council","http://opendatacommunities.org/id/metropolitan-district-council/wolverhampton","719998","Perfect Circle JV Ltd","28351654","607.61","Services - Professional Fees","130220728","11/07/2018","Corporate Asset Management","Strategic Asset Management Team","R4400"
"Wolverhampton City Council","http://opendatacommunities.org/id/metropolitan-district-council/wolverhampton","719998","Perfect Circle JV Ltd","28351637","77.30","Construction and Conversion","130220719","11/07/2018","-","GF - Maintenance of Non Highway Structures","C1100"
"Wolverhampton City Council","http://opendatacommunities.org/id/metropolitan-district-council/wolverhampton","719998","Perfect Circle JV Ltd","28351644","142.73","Construction and Conversion","130220721","11/07/2018","-","South Side","C1100"
"Wolverhampton City Council","http://opendatacommunities.org/id/metropolitan-district-council/wolverhampton","719998","Perfect Circle JV Ltd","28351648","353.85","Services - Professional Fees","130220723","11/07/2018","Corporate Asset Management","Strategic Asset Management Team","R4400"
"Wolverhampton City Council","http://opendatacommunities.org/id/metropolitan-district-council/wolverhampton","719998","Perfect Circle JV Ltd","28346385","1,073.80","Construction and Conversion","130216619","23/07/2018","-","GF - Disposals Programme (Non-Strategic)","C1100"
"Wolverhampton City Council","http://opendatacommunities.org/id/metropolitan-district-council/wolverhampton","719998","Perfect Circle JV Ltd","28353423","4,386.74","Construction and Conversion","130221224","25/07/2018","-","GF - Leisure Centres Enhancement","C1100"
"Wolverhampton City Council","http://opendatacommunities.org/id/metropolitan-district-council/wolverhampton","719998","Perfect Circle JV Ltd","28351659","567.95","Construction and Conversion","130220731","11/07/2018","-","Primary Expansion Programme","C1100"
"Wolverhampton City Council","http://opendatacommunities.org/id/metropolitan-district-council/wolverhampton","719998","Perfect Circle JV Ltd","28351668","328.09","Construction and Conversion","130220734","11/07/2018","-","Development of Cultural Estate","C1100"
"Wolverhampton City Council","http://opendatacommunities.org/id/metropolitan-district-council/wolverhampton","719998","Perfect Circle JV Ltd","28351672","792.96","Construction and Conversion","130220735","11/07/2018","-","Heath Town","C1100"
"Wolverhampton City Council","http://opendatacommunities.org/id/metropolitan-district-council/wolverhampton","719998","Perfect Circle JV Ltd","28351635","113.99","Construction and Conversion","130220718","11/07/2018","-","GF - Disposals Programme (Non-Strategic)","C1100"
"Wolverhampton City Council","http://opendatacommunities.org/id/metropolitan-district-council/wolverhampton","719998","Perfect Circle JV Ltd","28351678","130.59","Services - Professional Fees","130220737","11/07/2018","Housing Revenue Account","HRA General","R4400"
"Wolverhampton City Council","http://opendatacommunities.org/id/metropolitan-district-council/wolverhampton","719998","Perfect Circle JV Ltd","28346382","907.20","Construction and Conversion","130216618","11/07/2018","-","GF - Disposals Programme (Non-Strategic)","C1100"
"Wolverhampton City Council","http://opendatacommunities.org/id/metropolitan-district-council/wolverhampton","719998","Perfect Circle JV Ltd","28351650","62.46","Services - Professional Fees","130220725","11/07/2018","Corporate Asset Management","Strategic Asset Management Team","R4400"
"Wolverhampton City Council","http://opendatacommunities.org/id/metropolitan-district-council/wolverhampton","719998","Perfect Circle JV Ltd","28351640","698.80","Construction and Conversion","130220720","11/07/2018","-","GF - Disposals Programme (Non-Strategic)","C1100"
"Wolverhampton City Council","http://opendatacommunities.org/id/metropolitan-district-council/wolverhampton","719998","Perfect Circle JV Ltd","28351667","357.17","Construction and Conversion","130220733","11/07/2018","-","Development of Cultural Estate","C1100"
"Wolverhampton City Council","http://opendatacommunities.org/id/metropolitan-district-council/wolverhampton","719998","Perfect Circle JV Ltd","28351651","62.46","Construction and Conversion","130220726","11/07/2018","-","Corporate Asset Management","C1100"
"Wolverhampton City Council","http://opendatacommunities.org/id/metropolitan-district-council/wolverhampton","719998","Perfect Circle JV Ltd","28351658","1,020.95","Construction and Conversion","130220730","11/07/2018","-","Primary Expansion Programme","C1100"
"Wolverhampton City Council","http://opendatacommunities.org/id/metropolitan-district-council/wolverhampton","719998","Perfect Circle JV Ltd","28351649","71.36","Services - Professional Fees","130220724","11/07/2018","Schools","Bilston Church of England Primary School","R4400"
"Wolverhampton City Council","http://opendatacommunities.org/id/metropolitan-district-council/wolverhampton","719998","Perfect Circle JV Ltd","28351676","119.93","Construction and Conversion","130220736","11/07/2018","-","Sports Investment Strategy","C1100"
"Wolverhampton City Council","http://opendatacommunities.org/id/metropolitan-district-council/wolverhampton","720011","AMV Couriers LTD","7120","70.00","Comms - Postage","130219670","13/07/2018","Legal Services","Legal Services","R4503"
"Wolverhampton City Council","http://opendatacommunities.org/id/metropolitan-district-council/wolverhampton","720011","AMV Couriers LTD","7199","340.00","Comms - Postage","130221432","27/07/2018","Legal Services","Legal Services","R4503"
"Wolverhampton City Council","http://opendatacommunities.org/id/metropolitan-district-council/wolverhampton","720011","AMV Couriers LTD","7185","100.00","Comms - Postage","130221431","25/07/2018","ICTS","Document Centre - General","R4503"
"Wolverhampton City Council","http://opendatacommunities.org/id/metropolitan-district-council/wolverhampton","720011","AMV Couriers LTD","7135","45.00","Comms - Postage","130219672","13/07/2018","Looked After Children","Adoption and Residence Team & Allowances","R4503"
"Wolverhampton City Council","http://opendatacommunities.org/id/metropolitan-district-council/wolverhampton","720011","AMV Couriers LTD","7055","1,164.00","Comms - Postage","130221429","25/07/2018","Revenues & Benefits","Revenues","R4503"
"Wolverhampton City Council","http://opendatacommunities.org/id/metropolitan-district-council/wolverhampton","720011","AMV Couriers LTD","7149","255.00","Comms - Postage","130221430","23/07/2018","Legal Services","Legal Services","R4503"
"Wolverhampton City Council","http://opendatacommunities.org/id/metropolitan-district-council/wolverhampton","720011","AMV Couriers LTD","7125","70.00","Comms - Postage","130219671","13/07/2018","ICTS","Document Centre - General","R4503"
"Wolverhampton City Council","http://opendatacommunities.org/id/metropolitan-district-council/wolverhampton","720011","AMV Couriers LTD","7102","70.00","Comms - Postage","130219606","06/07/2018","Legal Services","Legal Services","R4503"
"Wolverhampton City Council","http://opendatacommunities.org/id/metropolitan-district-council/wolverhampton","720011","AMV Couriers LTD","7099","65.00","Comms - Postage","130219605","06/07/2018","ICTS","Document Centre - General","R4503"
"Wolverhampton City Council","http://opendatacommunities.org/id/metropolitan-district-council/wolverhampton","720014","Waterlogic","4373943","33.08","Catering","130223376","25/07/2018","Visitor Economy","Archives","R4100"
"Wolverhampton City Council","http://opendatacommunities.org/id/metropolitan-district-council/wolverhampton","720014","Waterlogic","3921323","20.29","Catering","130221225","04/07/2018","Early Intervention","EIP Locality 1 - Eastfields","R4100"
"Wolverhampton City Council","http://opendatacommunities.org/id/metropolitan-district-council/wolverhampton","720043","The Minories","P177955 22071820180703","18,993.81","TPP - Nursing Care - Short Term","190476040","04/07/2018","Physical Disabilities Care Purchasing","PD Care Purchasing (Spot Placements)","R5411"
"Wolverhampton City Council","http://opendatacommunities.org/id/metropolitan-district-council/wolverhampton","720071","Siobhan Nicholls","NEF Summer 2018 INST 2","612.00","TPP - Private Nursery Education Funding","190489824","25/07/2018","Early Years","Early Years Universal Entitlement for 3 and 4 Year Olds","R5035"
"Wolverhampton City Council","http://opendatacommunities.org/id/metropolitan-district-council/wolverhampton","720120","Granby Nurseries Ltd","P17960820180720","200.00","Client Allowances","190488122","25/07/2018","Looked After Children","Looked After Team 2","R6301"
"Wolverhampton City Council","http://opendatacommunities.org/id/metropolitan-district-council/wolverhampton","720147","St Barts CE Multi Acad  (Woodfield Inf)","Woodfield Infant Early Years Payment Autumn Term Interim 2018-19","27,381.90","Grant Payments","190484599","13/07/2018","Central Education","Academy Early years","R4700"
"Wolverhampton City Council","http://opendatacommunities.org/id/metropolitan-district-council/wolverhampton","720147","St Barts CE Multi Acad  (Woodfield Inf)","Woodfield Infants DFC grant balance owed","3,948.84","Grant Payments","190485598","18/07/2018","Schools","Woodfield Infant School","R4700"
"Wolverhampton City Council","http://opendatacommunities.org/id/metropolitan-district-council/wolverhampton","720147","St Barts CE Multi Acad  (Woodfield Inf)","Woodfield Infant Early Years Payment Summer Term 2018-19","43,023.60","Grant Payments","190484575","13/07/2018","Central Education","Academy Early years","R4700"
"Wolverhampton City Council","http://opendatacommunities.org/id/metropolitan-district-council/wolverhampton","720147","St Barts CE Multi Acad  (Woodfield Inf)","EYPP Summer 2018","572.40","TPP - Private Nursery Education Funding","190489844","25/07/2018","Early Years","Early Years Pupil Premium","R5035"
"Wolverhampton City Council","http://opendatacommunities.org/id/metropolitan-district-council/wolverhampton","720148","St Barts CE Multi Acad (Woodfield Jun)","Woodfield Junior DFC grant balance owed","22,942.25","Grant Payments","190485599","18/07/2018","Schools","Woodfield Junior School","R4700"
"Wolverhampton City Council","http://opendatacommunities.org/id/metropolitan-district-council/wolverhampton","720171","Exitus Children�s Care Ltd","P177762 22071820180702","18,380.00","TPP - Residential Care - Long Term","190475386","04/07/2018","Looked After Children","Out of City - Pooled Budget","R5400"
"Wolverhampton City Council","http://opendatacommunities.org/id/metropolitan-district-council/wolverhampton","720176","Rent Connect Properties Ltd","CP-WCC018-02","1,200.00","No Recourse to Public Funds","130223259","25/07/2018","Child Protection","CIN/CP Social Work Unit - Area 4","R6314"
"Wolverhampton City Council","http://opendatacommunities.org/id/metropolitan-district-council/wolverhampton","720176","Rent Connect Properties Ltd","CP-WCC018-04","1,140.00","No Recourse to Public Funds","130221970","11/07/2018","Child Protection","CIN/CP Social Work Unit - Area 5","R6314"
"Wolverhampton City Council","http://opendatacommunities.org/id/metropolitan-district-council/wolverhampton","720176","Rent Connect Properties Ltd","CP-WCC020-03","1,140.00","No Recourse to Public Funds","130222410","27/07/2018","Child Protection","CIN/CP Social Work Unit - Area 5","R6314"
"Wolverhampton City Council","http://opendatacommunities.org/id/metropolitan-district-council/wolverhampton","720176","Rent Connect Properties Ltd","CP-WCC019-02","1,240.00","No Recourse to Public Funds","130223260","27/07/2018","Child Protection","CIN/CP Social Work Unit - Area 4","R6314"
"Wolverhampton City Council","http://opendatacommunities.org/id/metropolitan-district-council/wolverhampton","720176","Rent Connect Properties Ltd","CP-WCC019-03","1,240.00","No Recourse to Public Funds","130223261","25/07/2018","Child Protection","CIN/CP Social Work Unit - Area 4","R6314"
"Wolverhampton City Council","http://opendatacommunities.org/id/metropolitan-district-council/wolverhampton","720200","Ashley Community & Housing Ltd","ACHWVH002","4,804.10","Rent Rebates","190489822","25/07/2018","Housing Revenue Account","Spend to Save Fund","R6210"
"Wolverhampton City Council","http://opendatacommunities.org/id/metropolitan-district-council/wolverhampton","720226","SW Retail","49927","150.00","Equipment - Purchase","130223643","27/07/2018","Independent Living Service","Independent Living Service","R4000"
"Wolverhampton City Council","http://opendatacommunities.org/id/metropolitan-district-council/wolverhampton","720226","SW Retail","49927","1,650.00","Equipment - Purchase","130223643","27/07/2018","Independent Living Service","Independent Living Service","R4000"
"Wolverhampton City Council","http://opendatacommunities.org/id/metropolitan-district-council/wolverhampton","720226","SW Retail","49927","375.00","Equipment - Purchase","130223643","27/07/2018","Independent Living Service","Independent Living Service","R4000"
"Wolverhampton City Council","http://opendatacommunities.org/id/metropolitan-district-council/wolverhampton","720226","SW Retail","49927","295.00","Equipment - Purchase","130223643","27/07/2018","Independent Living Service","Independent Living Service","R4000"
"Wolverhampton City Council","http://opendatacommunities.org/id/metropolitan-district-council/wolverhampton","720227","Helen Swanffield - CLCA","0343","300.00","Services - Professional Fees","130221226","06/07/2018","Legal Services","Centralised External Legal Costs","R4400"
"Wolverhampton City Council","http://opendatacommunities.org/id/metropolitan-district-council/wolverhampton","720235","Lydia Case","NEF Summer 2018 INST 2","612.00","TPP - Private Nursery Education Funding","190489824","25/07/2018","Early Years","Early Years Universal Entitlement for 3 and 4 Year Olds","R5035"
"Wolverhampton City Council","http://opendatacommunities.org/id/metropolitan-district-council/wolverhampton","720235","Lydia Case","TFT Summer 2018 Inst 2","377.28","TPP - Private Nursery Education Funding","190489836","25/07/2018","Early Years","Early Years Entitlement Funding for Disadvantaged 2 Year Olds","R5035"
"Wolverhampton City Council","http://opendatacommunities.org/id/metropolitan-district-council/wolverhampton","720242","Woodcross and Manor Playgroup and Breakfast Club","NEF Summer 2018 INST 2","1,083.75","TPP - Private Nursery Education Funding","190489824","25/07/2018","Early Years","Early Years Universal Entitlement for 3 and 4 Year Olds","R5035"
"Wolverhampton City Council","http://opendatacommunities.org/id/metropolitan-district-council/wolverhampton","720242","Woodcross and Manor Playgroup and Breakfast Club","TFT Summer 2018 Inst 2","597.36","TPP - Private Nursery Education Funding","190489836","25/07/2018","Early Years","Early Years Entitlement Funding for Disadvantaged 2 Year Olds","R5035"
"Wolverhampton City Council","http://opendatacommunities.org/id/metropolitan-district-council/wolverhampton","720270","Birches First School","P17911120180713","600.00","Grant Payments to Individuals","190484668","18/07/2018","Looked After Children","Pupil Premium","R6402"
"Wolverhampton City Council","http://opendatacommunities.org/id/metropolitan-district-council/wolverhampton","720273","Veronica House Ltd","P177624 22071820180703","3,932.60","TPP - Nursing Care - Long Term","190476044","04/07/2018","Older People Care Purchasing","OP Care Purchasing (Spot Placements)","R5410"
"Wolverhampton City Council","http://opendatacommunities.org/id/metropolitan-district-council/wolverhampton","720276","Drive DeVilbiss Sidhil Limited","659030","213.48","Equipment - R & M","130216051","04/07/2018","Independent Living Service","Independent Living Service","R4003"
"Wolverhampton City Council","http://opendatacommunities.org/id/metropolitan-district-council/wolverhampton","720276","Drive DeVilbiss Sidhil Limited","659067","195.69","Equipment - R & M","130216057","04/07/2018","Independent Living Service","Independent Living Service","R4003"
"Wolverhampton City Council","http://opendatacommunities.org/id/metropolitan-district-council/wolverhampton","720276","Drive DeVilbiss Sidhil Limited","659042","213.48","Equipment - R & M","130216053","04/07/2018","Independent Living Service","Independent Living Service","R4003"
"Wolverhampton City Council","http://opendatacommunities.org/id/metropolitan-district-council/wolverhampton","720276","Drive DeVilbiss Sidhil Limited","659065","231.27","Equipment - R & M","130216056","04/07/2018","Independent Living Service","Independent Living Service","R4003"
"Wolverhampton City Council","http://opendatacommunities.org/id/metropolitan-district-council/wolverhampton","720276","Drive DeVilbiss Sidhil Limited","659063","551.49","Equipment - R & M","130216054","27/07/2018","Independent Living Service","Independent Living Service","R4003"
"Wolverhampton City Council","http://opendatacommunities.org/id/metropolitan-district-council/wolverhampton","720276","Drive DeVilbiss Sidhil Limited","659023","177.90","Equipment - R & M","130216048","04/07/2018","Independent Living Service","Independent Living Service","R4003"
"Wolverhampton City Council","http://opendatacommunities.org/id/metropolitan-district-council/wolverhampton","720276","Drive DeVilbiss Sidhil Limited","659031","213.48","Equipment - R & M","130216052","04/07/2018","Independent Living Service","Independent Living Service","R4003"
"Wolverhampton City Council","http://opendatacommunities.org/id/metropolitan-district-council/wolverhampton","720276","Drive DeVilbiss Sidhil Limited","659012","213.48","Equipment - R & M","130216047","27/07/2018","Independent Living Service","Independent Living Service","R4003"
"Wolverhampton City Council","http://opendatacommunities.org/id/metropolitan-district-council/wolverhampton","720282","Selecta UK Ltd (Was Pelican Rouge)","180088585","1,100.00","Equipment - Purchase","130222971","23/07/2018","Public Service Reform","Members Expenses","R4000"
"Wolverhampton City Council","http://opendatacommunities.org/id/metropolitan-district-council/wolverhampton","720282","Selecta UK Ltd (Was Pelican Rouge)","180112022","99.61","Equipment - Hire","130217583","06/07/2018","Catering","Civic Centre Catering","R4001"
"Wolverhampton City Council","http://opendatacommunities.org/id/metropolitan-district-council/wolverhampton","720282","Selecta UK Ltd (Was Pelican Rouge)","180130867","99.61","Equipment - Hire","130221256","18/07/2018","Catering","Civic Centre Catering","R4001"
"Wolverhampton City Council","http://opendatacommunities.org/id/metropolitan-district-council/wolverhampton","720301","Leanne Pugh","NEF Summer 2018 INST 2","306.00","TPP - Private Nursery Education Funding","190489824","25/07/2018","Early Years","Early Years Universal Entitlement for 3 and 4 Year Olds","R5035"
"Wolverhampton City Council","http://opendatacommunities.org/id/metropolitan-district-council/wolverhampton","720302","Barrie Bookkeeping & Payroll Solutions Ltd","19095","7,203.95","Direct payments - Long Term support","130220868","25/07/2018","Strategic Commissioning","Head of Strategic Commissioning","R6302"
"Wolverhampton City Council","http://opendatacommunities.org/id/metropolitan-district-council/wolverhampton","720388","Women of Wolverhampton (WOW)","WOWSAFE12018","375.00","Grant Payments","130223122","23/07/2018","Community Safety","SWP - Locations","R4700"
"Wolverhampton City Council","http://opendatacommunities.org/id/metropolitan-district-council/wolverhampton","720421","KWB Property Management Ltd","0215-041229","7,832.00","Services - Professional Fees","130222492","23/07/2018","City Development","City Learning Quarter Regen Reserve","R4400"
"Wolverhampton City Council","http://opendatacommunities.org/id/metropolitan-district-council/wolverhampton","720440","Jerseytex Ltd","Grant No 055/17c","7,310.00","Grants paid out to other organisations","190475755","04/07/2018","-","GF - Black Country Gold ERDF Project","C5011"
"Wolverhampton City Council","http://opendatacommunities.org/id/metropolitan-district-council/wolverhampton","720460","NKB and Associates (UK) Ltd","9025RE-ISSUE","840.00","Accommodation Costs","130220869","04/07/2018","Child Protection","CIN/CP Social Work Unit - Area 5","R4900"
"Wolverhampton City Council","http://opendatacommunities.org/id/metropolitan-district-council/wolverhampton","720460","NKB and Associates (UK) Ltd","9035","1,240.00","No Recourse to Public Funds","130219353","04/07/2018","Child Protection","CIN/CP Social Work Unit - Area 4","R6314"
"Wolverhampton City Council","http://opendatacommunities.org/id/metropolitan-district-council/wolverhampton","720477","Roberts Limbrick Ltd","10303","2,850.00","Services - Professional Fees","130221227","25/07/2018","Maintenance Programme","Centralised R&M","R4400"
"Wolverhampton City Council","http://opendatacommunities.org/id/metropolitan-district-council/wolverhampton","720478","Performance Health","INGB065375","120.00","Equipment - Purchase","130214210","11/07/2018","Independent Living Service","Independent Living Service","R4000"
"Wolverhampton City Council","http://opendatacommunities.org/id/metropolitan-district-council/wolverhampton","720478","Performance Health","INGB065375","570.00","Equipment - Purchase","130214210","11/07/2018","Independent Living Service","Independent Living Service","R4000"
"Wolverhampton City Council","http://opendatacommunities.org/id/metropolitan-district-council/wolverhampton","720478","Performance Health","INGB101024","1,291.81","Equipment - Purchase","130219452","11/07/2018","Independent Living Service","Independent Living Service","R4000"
"Wolverhampton City Council","http://opendatacommunities.org/id/metropolitan-district-council/wolverhampton","720478","Performance Health","INGB104663","67.99","Equipment - Purchase","130220211","18/07/2018","Independent Living Service","Independent Living Service","R4000"
"Wolverhampton City Council","http://opendatacommunities.org/id/metropolitan-district-council/wolverhampton","720481","Hugh Thornbery Consulting","7","1,179.75","Services - Consultants","130220738","25/07/2018","Looked After Children","RAA - Regional Adoption Agency","R4404"
"Wolverhampton City Council","http://opendatacommunities.org/id/metropolitan-district-council/wolverhampton","720504","Alex Vann Music","3092","4,500.00","Services - Fees and Charges","130221228","25/07/2018","Learning Disability Provider","Support Plus","R4401"
"Wolverhampton City Council","http://opendatacommunities.org/id/metropolitan-district-council/wolverhampton","720506","Family First Fostering","P179100 22071820180712","11,785.72","TPP - Placement Foster Care Agency","190484348","13/07/2018","Looked After Children","Out of City Placements","R5602"
"Wolverhampton City Council","http://opendatacommunities.org/id/metropolitan-district-council/wolverhampton","720506","Family First Fostering","P179100 22071820180712","1,532.14","TPP - Placement Foster Care Agency","190484348","13/07/2018","Looked After Children","Out of City Placements","R5602"
"Wolverhampton City Council","http://opendatacommunities.org/id/metropolitan-district-council/wolverhampton","720521","Sable Leigh Consultancy","394","6,305.52","External Professional Fees","130222059","25/07/2018","-","GF - Interchange - Ph2 Train Station/MSCP/Metro Extension","C6002"
"Wolverhampton City Council","http://opendatacommunities.org/id/metropolitan-district-council/wolverhampton","720550","Grafityp UK Ltd","397968","912.90","Materials","130222775","25/07/2018","ICTS","Document Centre - General","R4007"
"Wolverhampton City Council","http://opendatacommunities.org/id/metropolitan-district-council/wolverhampton","720550","Grafityp UK Ltd","397967","630.00","Materials","130222774","25/07/2018","ICTS","Document Centre - General","R4007"
"Wolverhampton City Council","http://opendatacommunities.org/id/metropolitan-district-council/wolverhampton","720550","Grafityp UK Ltd","396219","484.50","Materials","130219086","04/07/2018","ICTS","Document Centre - General","R4007"
"Wolverhampton City Council","http://opendatacommunities.org/id/metropolitan-district-council/wolverhampton","720564","Kier Construction Limited-Central","10092855","421,944.33","Construction and Conversion","130222965","18/07/2018","-","Sports Investment Strategy","C1100"
"Wolverhampton City Council","http://opendatacommunities.org/id/metropolitan-district-council/wolverhampton","720585","Direct Automation Ltd","1019","249.00","Equipment - Purchase","130221433","06/07/2018","Early Intervention","EIP Locality 1 - Eastfields","R4000"
"Wolverhampton City Council","http://opendatacommunities.org/id/metropolitan-district-council/wolverhampton","720604","Staff Direct 4 U","TRAIN018BWOLVES","8,270.00","Training Expenses","130222494","25/07/2018","Skills","IMPACT","R1650"
"Wolverhampton City Council","http://opendatacommunities.org/id/metropolitan-district-council/wolverhampton","720604","Staff Direct 4 U","TRAIN018AWOLVES","9,305.00","Training Expenses","130222493","25/07/2018","Skills","IMPACT","R1650"
"Wolverhampton City Council","http://opendatacommunities.org/id/metropolitan-district-council/wolverhampton","720604","Staff Direct 4 U","TRAIN:017WOLVES","10,080.00","Training Expenses","130222411","18/07/2018","Skills","IMPACT","R1650"
"Wolverhampton City Council","http://opendatacommunities.org/id/metropolitan-district-council/wolverhampton","720615","Orchard Children Homes Ltd","P177810 22071820180702","15,200.00","TPP - Residential Care - Long Term","190475389","04/07/2018","Looked After Children","Out of City Placements","R5400"
"Wolverhampton City Council","http://opendatacommunities.org/id/metropolitan-district-council/wolverhampton","720633","The Grove Childminding","NEF Summer 2018 INST 2","293.25","TPP - Private Nursery Education Funding","190489824","25/07/2018","Early Years","Early Years Universal Entitlement for 3 and 4 Year Olds","R5035"
"Wolverhampton City Council","http://opendatacommunities.org/id/metropolitan-district-council/wolverhampton","720638","TETTENHALL TOTS","0000010013","589.00","TPP - Child Care provided for client","130220463","13/07/2018","Adult Education","Discretionary Fund","R5034"
"Wolverhampton City Council","http://opendatacommunities.org/id/metropolitan-district-council/wolverhampton","720639","Goldthorn Park Pri / Elston Hall MAT","EYPP Summer 2018","858.60","TPP - Private Nursery Education Funding","190489844","25/07/2018","Early Years","Early Years Pupil Premium","R5035"
"Wolverhampton City Council","http://opendatacommunities.org/id/metropolitan-district-council/wolverhampton","720639","Goldthorn Park Pri / Elston Hall MAT","Goldthorn Park Early Years Payment Summer Term 201819","36,719.70","Grant Payments","190484576","13/07/2018","Central Education","Academy Early years","R4700"
"Wolverhampton City Council","http://opendatacommunities.org/id/metropolitan-district-council/wolverhampton","720639","Goldthorn Park Pri / Elston Hall MAT","Goldthorn Park Early Years Payment Autumn term Interim 201819","14,752.24","Grant Payments","190484600","13/07/2018","Central Education","Academy Early years","R4700"
"Wolverhampton City Council","http://opendatacommunities.org/id/metropolitan-district-council/wolverhampton","720663","D A Languages Ltd","I0166360","23.00","Services - Translation fees","130220870","06/07/2018","Child Protection","CIN/CP Social Work Unit - Area 3","R4406"
"Wolverhampton City Council","http://opendatacommunities.org/id/metropolitan-district-council/wolverhampton","720663","D A Languages Ltd","I0166362","23.00","Services - Translation fees","130218697","04/07/2018","Child Protection","CIN/CP Social Work Unit - Area 2","R4406"
"Wolverhampton City Council","http://opendatacommunities.org/id/metropolitan-district-council/wolverhampton","720663","D A Languages Ltd","I0166157","11.96","Services - Translation fees","130218834","04/07/2018","Specialist Support","Vulnerable Young Persons Team","R4406"
"Wolverhampton City Council","http://opendatacommunities.org/id/metropolitan-district-council/wolverhampton","720663","D A Languages Ltd","I0165772","190.44","Services - Translation fees","130218832","04/07/2018","Early Intervention","EIP Locality 3 - Graiseley","R4406"
"Wolverhampton City Council","http://opendatacommunities.org/id/metropolitan-district-council/wolverhampton","720663","D A Languages Ltd","I0165752","196.66","Services - Translation fees","130219675","04/07/2018","Public Protection","EHTS Operational Costs","R4406"
"Wolverhampton City Council","http://opendatacommunities.org/id/metropolitan-district-council/wolverhampton","720663","D A Languages Ltd","I0166354","99.00","Services - Translation fees","130218695","04/07/2018","Early Intervention","EIP Locality 5 � Whitmore Reans","R4406"
"Wolverhampton City Council","http://opendatacommunities.org/id/metropolitan-district-council/wolverhampton","720663","D A Languages Ltd","I0166294","46.00","Services - Translation fees","130218852","04/07/2018","Looked After Children","Looked After Team 1","R4406"
"Wolverhampton City Council","http://opendatacommunities.org/id/metropolitan-district-council/wolverhampton","720663","D A Languages Ltd","I0165751","100.36","Services - Translation fees","130218830","04/07/2018","Child Protection","CIN/CP Social Work Unit - Area 8","R4406"
"Wolverhampton City Council","http://opendatacommunities.org/id/metropolitan-district-council/wolverhampton","720663","D A Languages Ltd","I0166290","106.00","Services - Translation fees","130218848","04/07/2018","Early Intervention","EIP Locality 4 - Bingley","R4406"
"Wolverhampton City Council","http://opendatacommunities.org/id/metropolitan-district-council/wolverhampton","720663","D A Languages Ltd","I0166169","73.52","Services - Translation fees","130218836","04/07/2018","Public Protection","EHTS Operational Costs","R4406"
"Wolverhampton City Council","http://opendatacommunities.org/id/metropolitan-district-council/wolverhampton","720663","D A Languages Ltd","3996","-30.00","Services - Translation fees","130220000","23/07/2018","Child Protection","CIN/CP Social Work Unit - Area 3","R4406"
"Wolverhampton City Council","http://opendatacommunities.org/id/metropolitan-district-council/wolverhampton","720663","D A Languages Ltd","I0166260","184.00","Services - Translation fees","130218843","04/07/2018","Youth Offending","Youth Offending Team","R4406"
"Wolverhampton City Council","http://opendatacommunities.org/id/metropolitan-district-council/wolverhampton","720663","D A Languages Ltd","I0166355","69.00","Services - Translation fees","130218696","04/07/2018","Mental Health Assesment & Care Management","Mental Health Assessment & Care Management","R4406"
"Wolverhampton City Council","http://opendatacommunities.org/id/metropolitan-district-council/wolverhampton","720663","D A Languages Ltd","I0166361","23.00","Services - Translation fees","130218854","04/07/2018","Carer Support","Carers Support","R4406"
"Wolverhampton City Council","http://opendatacommunities.org/id/metropolitan-district-council/wolverhampton","720663","D A Languages Ltd","I0165747","118.64","Services - Translation fees","130218827","04/07/2018","Adults Assessment & Care Management West","Adult Services � West","R4406"
"Wolverhampton City Council","http://opendatacommunities.org/id/metropolitan-district-council/wolverhampton","720663","D A Languages Ltd","I0166288","175.00","Services - Translation fees","130218846","04/07/2018","Governance Services","Equalities","R4406"
"Wolverhampton City Council","http://opendatacommunities.org/id/metropolitan-district-council/wolverhampton","720663","D A Languages Ltd","I0166204","168.00","Services - Translation fees","130218839","04/07/2018","Adults Assessment & Care Management West","Hospital Team","R4406"
"Wolverhampton City Council","http://opendatacommunities.org/id/metropolitan-district-council/wolverhampton","720663","D A Languages Ltd","I0166306","198.00","Services - Translation fees","130218688","04/07/2018","Adults Assessment & Care Management East","Adult Services � East","R4406"
"Wolverhampton City Council","http://opendatacommunities.org/id/metropolitan-district-council/wolverhampton","720663","D A Languages Ltd","I0166316","76.00","Services - Translation fees","130218691","04/07/2018","Specialist Support","Vulnerable Young Persons Team","R4406"
"Wolverhampton City Council","http://opendatacommunities.org/id/metropolitan-district-council/wolverhampton","720663","D A Languages Ltd","I0166309","60.00","Services - Translation fees","130218689","04/07/2018","Child Protection","CIN/CP Social Work Unit - Area 2","R4406"
"Wolverhampton City Council","http://opendatacommunities.org/id/metropolitan-district-council/wolverhampton","720663","D A Languages Ltd","I0166206","939.00","Services - Translation fees","130218840","04/07/2018","Child Protection","CIN/CP Social Work Unit - Area 3","R4406"
"Wolverhampton City Council","http://opendatacommunities.org/id/metropolitan-district-council/wolverhampton","720663","D A Languages Ltd","I0166315","360.00","Services - Translation fees","130218690","04/07/2018","Early Intervention","EIP Locality 8 � Children�s Village","R4406"
"Wolverhampton City Council","http://opendatacommunities.org/id/metropolitan-district-council/wolverhampton","720663","D A Languages Ltd","I0166193","69.00","Services - Translation fees","130218838","04/07/2018","Looked After Children","Fostering Team & Allowances","R4406"
"Wolverhampton City Council","http://opendatacommunities.org/id/metropolitan-district-council/wolverhampton","720663","D A Languages Ltd","I0166259","387.00","Services - Translation fees","130218842","04/07/2018","Child Protection","CIN/CP Social Work Unit - Area 4","R4406"
"Wolverhampton City Council","http://opendatacommunities.org/id/metropolitan-district-council/wolverhampton","720663","D A Languages Ltd","I0165749","121.12","Services - Translation fees","130218829","04/07/2018","Child Protection","CIN/CP Social Work Unit - Area 5","R4406"
"Wolverhampton City Council","http://opendatacommunities.org/id/metropolitan-district-council/wolverhampton","720663","D A Languages Ltd","I0166285","168.00","Services - Translation fees","130218845","04/07/2018","Early Intervention","EIP Locality 8 � Children�s Village","R4406"
"Wolverhampton City Council","http://opendatacommunities.org/id/metropolitan-district-council/wolverhampton","720663","D A Languages Ltd","I0165728","166.00","Services - Translation fees","130218824","04/07/2018","Adults Assessment & Care Management West","Adult Services � West","R4406"
"Wolverhampton City Council","http://opendatacommunities.org/id/metropolitan-district-council/wolverhampton","720663","D A Languages Ltd","I0166289","46.00","Services - Translation fees","130218847","04/07/2018","Early Intervention","EIP Locality 1 - Eastfields","R4406"
"Wolverhampton City Council","http://opendatacommunities.org/id/metropolitan-district-council/wolverhampton","720663","D A Languages Ltd","I0166319","281.00","Services - Translation fees","130218692","04/07/2018","Child Protection","Childrens with Disabilities Team","R4406"
"Wolverhampton City Council","http://opendatacommunities.org/id/metropolitan-district-council/wolverhampton","720663","D A Languages Ltd","I0166257","546.00","Services - Translation fees","130218841","04/07/2018","Child Protection","CIN/CP Social Work Unit - Area 5","R4406"
"Wolverhampton City Council","http://opendatacommunities.org/id/metropolitan-district-council/wolverhampton","720663","D A Languages Ltd","I0165748","16.12","Services - Translation fees","130218828","23/07/2018","Adults Assessment & Care Management West","Hospital Team","R4406"
"Wolverhampton City Council","http://opendatacommunities.org/id/metropolitan-district-council/wolverhampton","720663","D A Languages Ltd","I0166291","46.00","Services - Translation fees","130218849","13/07/2018","Adults Assessment & Care Management North","Adult Services � North","R4406"
"Wolverhampton City Council","http://opendatacommunities.org/id/metropolitan-district-council/wolverhampton","720663","D A Languages Ltd","104138","46.00","Services - Translation fees","130222777","27/07/2018","Child Protection","CIN/CP Social Work Unit - Area 8","R4406"
"Wolverhampton City Council","http://opendatacommunities.org/id/metropolitan-district-council/wolverhampton","720663","D A Languages Ltd","I0164350","53.00","Services - Translation fees","130216060","13/07/2018","Adults Assessment & Care Management North","Adult Services � North","R4406"
"Wolverhampton City Council","http://opendatacommunities.org/id/metropolitan-district-council/wolverhampton","720663","D A Languages Ltd","I0166330","46.00","Services - Translation fees","130219355","11/07/2018","Child Protection","MASH","R4406"
"Wolverhampton City Council","http://opendatacommunities.org/id/metropolitan-district-council/wolverhampton","720663","D A Languages Ltd","I0165775","380.32","Services - Translation fees","130218833","04/07/2018","Looked After Children","LAC Transitions Team","R4406"
"Wolverhampton City Council","http://opendatacommunities.org/id/metropolitan-district-council/wolverhampton","720663","D A Languages Ltd","I0166293","46.00","Services - Translation fees","130218851","04/07/2018","Child Protection","CIN/CP Social Work Unit - Area 8","R4406"
"Wolverhampton City Council","http://opendatacommunities.org/id/metropolitan-district-council/wolverhampton","720663","D A Languages Ltd","I0165740","48.36","Services - Translation fees","130218825","04/07/2018","Customer Services","City Direct","R4406"
"Wolverhampton City Council","http://opendatacommunities.org/id/metropolitan-district-council/wolverhampton","720663","D A Languages Ltd","I0165768","657.04","Services - Translation fees","130218831","04/07/2018","Child Protection","CIN/CP Social Work Unit - Area 6","R4406"
"Wolverhampton City Council","http://opendatacommunities.org/id/metropolitan-district-council/wolverhampton","720663","D A Languages Ltd","I0166292","550.00","Services - Translation fees","130218850","04/07/2018","Governance Services","Scrutiny","R4406"
"Wolverhampton City Council","http://opendatacommunities.org/id/metropolitan-district-council/wolverhampton","720663","D A Languages Ltd","I0166158","266.48","Services - Translation fees","130218835","04/07/2018","Child Protection","Childrens with Disabilities Team","R4406"
"Wolverhampton City Council","http://opendatacommunities.org/id/metropolitan-district-council/wolverhampton","720663","D A Languages Ltd","I0165743","22.88","Services - Translation fees","130218826","04/07/2018","Standards and Vulnerable Pupils","SENDIASS","R4406"
"Wolverhampton City Council","http://opendatacommunities.org/id/metropolitan-district-council/wolverhampton","720663","D A Languages Ltd","I0166363","124.40","Services - Translation fees","130219610","04/07/2018","Child Protection","CIN/CP Social Work Unit - Area 3","R4406"
"Wolverhampton City Council","http://opendatacommunities.org/id/metropolitan-district-council/wolverhampton","720663","D A Languages Ltd","I0166320","46.00","Services - Translation fees","130218693","23/07/2018","Adults Assessment & Care Management West","Hospital Team","R4406"
"Wolverhampton City Council","http://opendatacommunities.org/id/metropolitan-district-council/wolverhampton","720721","Select Private Hire Ltd","3131","1,040.00","Client Transport - SEN","130223646","25/07/2018","Special Educational Needs","Special - Transport","R3043"
"Wolverhampton City Council","http://opendatacommunities.org/id/metropolitan-district-council/wolverhampton","720721","Select Private Hire Ltd","3105","936.00","Client Transport - SEN","130223645","25/07/2018","Special Educational Needs","Special - Transport","R3043"
"Wolverhampton City Council","http://opendatacommunities.org/id/metropolitan-district-council/wolverhampton","720733","My Local Window Cleaners Limited","876","50.00","Window Cleaning","130223271","25/07/2018","Early Intervention","EIP Locality 5 � Whitmore Reans","R2701"
"Wolverhampton City Council","http://opendatacommunities.org/id/metropolitan-district-council/wolverhampton","720763","PCM Technology Solutions UK Ltd","900017669","1,103.46","Computing - Purchase of Hardware","130223272","23/07/2018","Adult Education","ICT Services","R4530"
"Wolverhampton City Council","http://opendatacommunities.org/id/metropolitan-district-council/wolverhampton","720763","PCM Technology Solutions UK Ltd","900017991","1,839.10","Computing - Purchase of Hardware","130223273","25/07/2018","Adult Education","ICT Services","R4530"
"Wolverhampton City Council","http://opendatacommunities.org/id/metropolitan-district-council/wolverhampton","720763","PCM Technology Solutions UK Ltd","900017991","0.01","Computing - Purchase of Hardware","130223273","25/07/2018","Adult Education","ICT Services","R4530"
"Wolverhampton City Council","http://opendatacommunities.org/id/metropolitan-district-council/wolverhampton","720794","Gillian Evans Psychology Services Limited","1274.O�Fa","329.98","Services - Professional Fees","190482796","11/07/2018","Legal Services","Centralised External Legal Costs","R4400"
"Wolverhampton City Council","http://opendatacommunities.org/id/metropolitan-district-council/wolverhampton","720813","Jayne Pitcher","NEF Summer 2018 INST 2","306.00","TPP - Private Nursery Education Funding","190489824","25/07/2018","Early Years","Early Years Universal Entitlement for 3 and 4 Year Olds","R5035"
"Wolverhampton City Council","http://opendatacommunities.org/id/metropolitan-district-council/wolverhampton","720829","HS Consultancy Ltd","INV-HSC-1260","867.90","Training Expenses","130218985","04/07/2018","Public Service Reform","Workforce Development","R1650"
"Wolverhampton City Council","http://opendatacommunities.org/id/metropolitan-district-council/wolverhampton","720851","Dr Kevin Epps","JAS/AM/Carter/CA0005/001","1,336.55","Services - Professional Fees","190487781","23/07/2018","Legal Services","Centralised External Legal Costs","R4400"
"Wolverhampton City Council","http://opendatacommunities.org/id/metropolitan-district-council/wolverhampton","720867","C M Davies Ltd","LL 180630","150.00","Client Transport","130222303","25/07/2018","Child Protection","Childrens with Disabilities Team","R3042"
"Wolverhampton City Council","http://opendatacommunities.org/id/metropolitan-district-council/wolverhampton","720887","York Archaeological Trust","0000005791","2,000.00","Services - Professional Fees","130221434","18/07/2018","Visitor Economy","Vikings - NPO ACE WAG","R4400"
"Wolverhampton City Council","http://opendatacommunities.org/id/metropolitan-district-council/wolverhampton","720899","B Smart Training Ltd","2010","177.00","Training Expenses","130221229","04/07/2018","Skills","IMPACT","R1650"
"Wolverhampton City Council","http://opendatacommunities.org/id/metropolitan-district-council/wolverhampton","720899","B Smart Training Ltd","2042","3,100.00","Training Expenses","130222305","18/07/2018","Skills","IMPACT","R1650"
"Wolverhampton City Council","http://opendatacommunities.org/id/metropolitan-district-council/wolverhampton","720899","B Smart Training Ltd","2035","177.00","Training Expenses","130221973","11/07/2018","Skills","IMPACT","R1650"
"Wolverhampton City Council","http://opendatacommunities.org/id/metropolitan-district-council/wolverhampton","720899","B Smart Training Ltd","2034","1,550.00","Training Expenses","130222304","18/07/2018","Skills","IMPACT","R1650"
"Wolverhampton City Council","http://opendatacommunities.org/id/metropolitan-district-council/wolverhampton","720899","B Smart Training Ltd","2049","118.00","Training Expenses","130223822","27/07/2018","Skills","IMPACT","R1650"
"Wolverhampton City Council","http://opendatacommunities.org/id/metropolitan-district-council/wolverhampton","720899","B Smart Training Ltd","2041","472.00","Training Expenses","130221436","06/07/2018","Skills","IMPACT","R1650"
"Wolverhampton City Council","http://opendatacommunities.org/id/metropolitan-district-council/wolverhampton","720899","B Smart Training Ltd","2032","1,550.00","Training Expenses","130221435","18/07/2018","Skills","IMPACT","R1650"
"Wolverhampton City Council","http://opendatacommunities.org/id/metropolitan-district-council/wolverhampton","720899","B Smart Training Ltd","2012","2,325.00","Training Expenses","130221230","06/07/2018","Skills","IMPACT","R1650"
"Wolverhampton City Council","http://opendatacommunities.org/id/metropolitan-district-council/wolverhampton","720904","NTA Monitor Ltd","18157","1,750.96","Services - Professional Fees","130219357","13/07/2018","ICTS","Strategic ICTS (ICT Service Budget)","R4400"
"Wolverhampton City Council","http://opendatacommunities.org/id/metropolitan-district-council/wolverhampton","720910","Hope into Action: Black Country","0041","830.00","Rent Rebates","190489823","25/07/2018","Housing Revenue Account","Spend to Save Fund","R6210"
"Wolverhampton City Council","http://opendatacommunities.org/id/metropolitan-district-council/wolverhampton","720939","Creative-Connections","012","580.00","Direct Work With Children","130220328","18/07/2018","Looked After Children","Adoption Support Fund","R6310"
"Wolverhampton City Council","http://opendatacommunities.org/id/metropolitan-district-council/wolverhampton","720939","Creative-Connections","013","580.00","Direct Work With Children","130220329","18/07/2018","Looked After Children","Adoption Support Fund","R6310"
"Wolverhampton City Council","http://opendatacommunities.org/id/metropolitan-district-council/wolverhampton","720939","Creative-Connections","014","322.00","Direct Work With Children","130220330","18/07/2018","Looked After Children","Adoption Support Fund","R6310"
"Wolverhampton City Council","http://opendatacommunities.org/id/metropolitan-district-council/wolverhampton","720939","Creative-Connections","015","290.00","Direct Work With Children","130220331","18/07/2018","Looked After Children","Adoption Support Fund","R6310"
"Wolverhampton City Council","http://opendatacommunities.org/id/metropolitan-district-council/wolverhampton","720962","Art Monthly","4180","595.00","Marketing \ Non-staff advertising","130221437","27/07/2018","Visitor Economy","Arts Publicity","R4317"
"Wolverhampton City Council","http://opendatacommunities.org/id/metropolitan-district-council/wolverhampton","720966","Digital Imaging Services Ltd","18221","1,260.00","Signage and Labels","130221438","25/07/2018","Estates and Valuations","Other Premises ; General","R4009"
"Wolverhampton City Council","http://opendatacommunities.org/id/metropolitan-district-council/wolverhampton","720966","Digital Imaging Services Ltd","18222","1,689.00","Signage and Labels","130221439","25/07/2018","Estates and Valuations","Other Premises ; General","R4009"
"Wolverhampton City Council","http://opendatacommunities.org/id/metropolitan-district-council/wolverhampton","720966","Digital Imaging Services Ltd","18223","2,489.00","Signage and Labels","130221440","25/07/2018","Estates and Valuations","Other Premises ; General","R4009"
"Wolverhampton City Council","http://opendatacommunities.org/id/metropolitan-district-council/wolverhampton","720974","Taz Lovejoy","0015","392.00","Services - Professional Fees","130220464","23/07/2018","Visitor Economy","Technical Support - ACE NPO WAG","R4400"
"Wolverhampton City Council","http://opendatacommunities.org/id/metropolitan-district-council/wolverhampton","720983","Family Matters Enterprise","MW03","322.00","TPP - Social Care Support Services","130222062","25/07/2018","Child Protection","CIN/CP Social Work Unit - Area 8","R5501"
"Wolverhampton City Council","http://opendatacommunities.org/id/metropolitan-district-council/wolverhampton","720983","Family Matters Enterprise","LP02","464.00","TPP - Social Care Support Services","130219678","13/07/2018","Child Protection","CIN/CP Social Work Unit - Area 8","R5501"
"Wolverhampton City Council","http://opendatacommunities.org/id/metropolitan-district-council/wolverhampton","720983","Family Matters Enterprise","LP03","464.00","TPP - Social Care Support Services","130222060","25/07/2018","Child Protection","CIN/CP Social Work Unit - Area 8","R5501"
"Wolverhampton City Council","http://opendatacommunities.org/id/metropolitan-district-council/wolverhampton","720983","Family Matters Enterprise","MW02","464.00","TPP - Social Care Support Services","130219679","13/07/2018","Child Protection","CIN/CP Social Work Unit - Area 8","R5501"
"Wolverhampton City Council","http://opendatacommunities.org/id/metropolitan-district-council/wolverhampton","720983","Family Matters Enterprise","MP01","172.00","TPP - Social Care Support Services","130222061","25/07/2018","Child Protection","CIN/CP Social Work Unit - Area 8","R5501"
"Wolverhampton City Council","http://opendatacommunities.org/id/metropolitan-district-council/wolverhampton","721007","Buchanan Computing","C7044","2,200.00","Training Expenses","130218698","04/07/2018","Public Service Reform","Centralised Training","R1650"
"Wolverhampton City Council","http://opendatacommunities.org/id/metropolitan-district-council/wolverhampton","721028","Mr Major Singh","16087209","1,650.00","No Recourse to Public Funds","130221040","25/07/2018","Child Protection","CIN/CP Social Work Unit - Area 5","R6314"
"Wolverhampton City Council","http://opendatacommunities.org/id/metropolitan-district-council/wolverhampton","721036","Archaeology Warwickshire","10200886","4,055.00","Construction and Conversion","130223382","25/07/2018","-","GF - Disposals Programme (Non-Strategic)","C1100"
"Wolverhampton City Council","http://opendatacommunities.org/id/metropolitan-district-council/wolverhampton","721060","Voice 2 Voice Ltd","50625","8,000.00","Services - Professional Fees","130218987","04/07/2018","ICTS","Strategic ICTS (ICT Service Budget)","R4400"
"Wolverhampton City Council","http://opendatacommunities.org/id/metropolitan-district-council/wolverhampton","721076","L&M Survey Services","15511","6,864.00","Services - Fees and Charges","130219358","11/07/2018","City Development","City Centre Public Realm","R4401"
"Wolverhampton City Council","http://opendatacommunities.org/id/metropolitan-district-council/wolverhampton","721076","L&M Survey Services","15511","-6,864.00","Services - Fees and Charges","130219358","11/07/2018","City Development","City Centre Public Realm","R4401"
"Wolverhampton City Council","http://opendatacommunities.org/id/metropolitan-district-council/wolverhampton","721076","L&M Survey Services","15511","6,910.00","Services - Fees and Charges","130219358","11/07/2018","City Development","City Centre Public Realm","R4401"
"Wolverhampton City Council","http://opendatacommunities.org/id/metropolitan-district-council/wolverhampton","721086","Collaborate I CIC","0242","2,159.50","Conference Expenses","130211008","13/07/2018","Strategic Director People","Strategic Director People","R4611"
"Wolverhampton City Council","http://opendatacommunities.org/id/metropolitan-district-council/wolverhampton","721113","Hotline Cars Ltd","02386","68.00","Client Transport - SEN","130222309","18/07/2018","Special Educational Needs","Special - Transport","R3043"
"Wolverhampton City Council","http://opendatacommunities.org/id/metropolitan-district-council/wolverhampton","721113","Hotline Cars Ltd","02409","353.00","Client Transport - SEN","130222412","18/07/2018","Special Educational Needs","Special - Transport","R3043"
"Wolverhampton City Council","http://opendatacommunities.org/id/metropolitan-district-council/wolverhampton","721116","Sanders Wright and Freeman","MJH/R791(3A)","425.00","No Recourse to Public Funds","130223277","25/07/2018","Child Protection","CIN/CP Social Work Unit - Area 5","R6314"
"Wolverhampton City Council","http://opendatacommunities.org/id/metropolitan-district-council/wolverhampton","721116","Sanders Wright and Freeman","MJH/R791(2)","1,275.00","No Recourse to Public Funds","130220615","04/07/2018","Child Protection","CIN/CP Social Work Unit - Area 5","R6314"
"Wolverhampton City Council","http://opendatacommunities.org/id/metropolitan-district-council/wolverhampton","721148","402k Consultancy Limited","029","311.25","Services - Consultants","130221232","25/07/2018","Safeguarding","Safeguarding Partnership Board","R4404"
"Wolverhampton City Council","http://opendatacommunities.org/id/metropolitan-district-council/wolverhampton","721165","Huxley Print Limited","Grant No. 087/18c","2,700.00","Grants paid out to other organisations","190485621","18/07/2018","-","GF - Black Country Gold ERDF Project","C5011"
"Wolverhampton City Council","http://opendatacommunities.org/id/metropolitan-district-council/wolverhampton","721166","McAuliffe Group Ltd","Grant No. 090/18c","6,202.00","Grants paid out to other organisations","190475751","04/07/2018","-","GF - Black Country Gold ERDF Project","C5011"
"Wolverhampton City Council","http://opendatacommunities.org/id/metropolitan-district-council/wolverhampton","721168","Dains Forensic Accounting","6116279","7,412.50","Services - Professional Fees","130223278","25/07/2018","Service Director Adults","Service Director � Adults","R4400"
"Wolverhampton City Council","http://opendatacommunities.org/id/metropolitan-district-council/wolverhampton","721204","David Ogilvie Engineering Ltd.","181695","695.00","Furniture","130221974","23/07/2018","Transportation","Transportation General","R4004"
"Wolverhampton City Council","http://opendatacommunities.org/id/metropolitan-district-council/wolverhampton","721204","David Ogilvie Engineering Ltd.","181695","49.00","Furniture","130221974","23/07/2018","Transportation","Transportation General","R4004"
"Wolverhampton City Council","http://opendatacommunities.org/id/metropolitan-district-council/wolverhampton","721204","David Ogilvie Engineering Ltd.","181695","9.50","Furniture","130221974","23/07/2018","Transportation","Transportation General","R4004"
"Wolverhampton City Council","http://opendatacommunities.org/id/metropolitan-district-council/wolverhampton","721204","David Ogilvie Engineering Ltd.","181695","105.00","Comms - Postage","130221974","23/07/2018","Transportation","Transportation General","R4503"
"Wolverhampton City Council","http://opendatacommunities.org/id/metropolitan-district-council/wolverhampton","721206","imageHOLDERS Ltd","SI3812","1,625.00","Equipment - Purchase","130221041","06/07/2018","Customer Services","City Direct","R4000"
"Wolverhampton City Council","http://opendatacommunities.org/id/metropolitan-district-council/wolverhampton","721218","Bradley Builders","16/0775/DFG","6,944.63","Grants paid out to other organisations","190485682","18/07/2018","-","Disabled Facilities Grants","C5011"
"Wolverhampton City Council","http://opendatacommunities.org/id/metropolitan-district-council/wolverhampton","721223","WCS Group Limited","MD100709","358.33","R&M - Departmental planned (external)","130220332","13/07/2018","Maintenance Programme","Civic Centre Repairs & Maintenance","R2001"
"Wolverhampton City Council","http://opendatacommunities.org/id/metropolitan-district-council/wolverhampton","721231","Mr P K Sharma","17/0266/DFG","15,000.00","Grants paid out to other organisations","190483217","11/07/2018","-","Disabled Facilities Grants","C5011"
"Wolverhampton City Council","http://opendatacommunities.org/id/metropolitan-district-council/wolverhampton","721233","New Invention Junior School","NIJSEN35TOP-UP","3,613.08","TPP - Alternative Provision of Education","130223479","25/07/2018","Special Educational Needs","SEN Education OOC","R5037"
"Wolverhampton City Council","http://opendatacommunities.org/id/metropolitan-district-council/wolverhampton","721236","King Consultancy","WOLV001","2,250.00","Training Expenses","130223124","27/07/2018","Public Service Reform","Workforce Development","R1650"
"Wolverhampton City Council","http://opendatacommunities.org/id/metropolitan-district-council/wolverhampton","721238","AET GB Limited","1671-18","1,480.00","R&M - Departmental planned (external)","130219157","06/07/2018","Maintenance Programme","Civic Centre Repairs & Maintenance","R2001"
"Wolverhampton City Council","http://opendatacommunities.org/id/metropolitan-district-council/wolverhampton","721239","Steven Talbot Consultancy","1027","1,500.00","Training Expenses","130218860","04/07/2018","Public Service Reform","Centralised Training","R1650"
"Wolverhampton City Council","http://opendatacommunities.org/id/metropolitan-district-council/wolverhampton","721240","Holloway Plastics Limited","Grant No. 088/18c","23,476.00","Grants paid out to other organisations","190485622","18/07/2018","-","GF - Black Country Gold ERDF Project","C5011"
"Wolverhampton City Council","http://opendatacommunities.org/id/metropolitan-district-council/wolverhampton","721259","GN Groundworks Limited","NM/KAJ","6,229.11","Construction and Conversion","130220465","13/07/2018","-","Integrated Transport","C1100"
"Wolverhampton City Council","http://opendatacommunities.org/id/metropolitan-district-council/wolverhampton","721271","Bowmer and Kirkland","F640321","115,241.00","Construction and Conversion","130220218","06/07/2018","-","Primary Expansion Programme","C1100"
"Wolverhampton City Council","http://opendatacommunities.org/id/metropolitan-district-council/wolverhampton","721281","Play N Learn Nursery","NEF Summer 2018 INST 2","1,071.00","TPP - Private Nursery Education Funding","190489824","25/07/2018","Early Years","Early Years Universal Entitlement for 3 and 4 Year Olds","R5035"
"Wolverhampton City Council","http://opendatacommunities.org/id/metropolitan-district-council/wolverhampton","721281","Play N Learn Nursery","TFT Summer 2018 Inst 2","943.20","TPP - Private Nursery Education Funding","190489836","25/07/2018","Early Years","Early Years Entitlement Funding for Disadvantaged 2 Year Olds","R5035"
"Wolverhampton City Council","http://opendatacommunities.org/id/metropolitan-district-council/wolverhampton","721293","Complex Needs Consultancy","BC00/1/18/JW/1","450.00","Services - Professional Fees","130221441","18/07/2018","Standards and Vulnerable Pupils","School Standards Training","R4400"
"Wolverhampton City Council","http://opendatacommunities.org/id/metropolitan-district-council/wolverhampton","721293","Complex Needs Consultancy","BC00/1/18/JW/1","24.30","Training Expenses","130221441","18/07/2018","Standards and Vulnerable Pupils","School Standards Training","R1650"
"Wolverhampton City Council","http://opendatacommunities.org/id/metropolitan-district-council/wolverhampton","721301","LEEC Limited","11373","404.00","Equipment - R & M","130222780","25/07/2018","Bereavement Services","Crematorium","R4003"
"Wolverhampton City Council","http://opendatacommunities.org/id/metropolitan-district-council/wolverhampton","721335","Kimber Drop Forgings Ltd","Grant No. 093/18c","5,000.00","Grants paid out to other organisations","190482889","11/07/2018","-","GF - Black Country Gold ERDF Project","C5011"
"Wolverhampton City Council","http://opendatacommunities.org/id/metropolitan-district-council/wolverhampton","721342","Blossom Social Care Training","000109","447.50","Direct Work With Children","130220001","18/07/2018","Looked After Children","Adoption Support Fund","R6310"
"Wolverhampton City Council","http://opendatacommunities.org/id/metropolitan-district-council/wolverhampton","721346","Mastervent Ltd","Grant No. 103/18c","6,004.00","Grants paid out to other organisations","190489800","25/07/2018","-","GF - Black Country Gold ERDF Project","C5011"
"Wolverhampton City Council","http://opendatacommunities.org/id/metropolitan-district-council/wolverhampton","721373","Bennett Workplace Solutions","122968","590.62","Equipment - Purchase","130221442","18/07/2018","Early Intervention","EIP Locality 8 � Children�s Village","R4000"
"Wolverhampton City Council","http://opendatacommunities.org/id/metropolitan-district-council/wolverhampton","721374","Raytel Security Systems Limited","18102208","642.65","Construction and Conversion","130220333","11/07/2018","-","Co-Location Programme","C1100"
"Wolverhampton City Council","http://opendatacommunities.org/id/metropolitan-district-council/wolverhampton","721377","Stadium Traffic Management Ltd","11865","19,970.00","TPP - Traffic Management","130222317","18/07/2018","Central Corporate Budgets","Civic Events","R5050"
"Wolverhampton City Council","http://opendatacommunities.org/id/metropolitan-district-council/wolverhampton","721384","Villiers Primary School","Villiers Primary School Early Years Payment Summer 201819","37,632.60","Grant Payments","190484577","13/07/2018","Central Education","Academy Early years","R4700"
"Wolverhampton City Council","http://opendatacommunities.org/id/metropolitan-district-council/wolverhampton","721384","Villiers Primary School","Villiers Primary School Early Years Payment Autumn Term Interim 201819","18,034.80","Grant Payments","190484601","13/07/2018","Central Education","Academy Early years","R4700"
"Wolverhampton City Council","http://opendatacommunities.org/id/metropolitan-district-council/wolverhampton","721384","Villiers Primary School","EYPP Summer 2018","763.20","TPP - Private Nursery Education Funding","190489844","25/07/2018","Early Years","Early Years Pupil Premium","R5035"
"Wolverhampton City Council","http://opendatacommunities.org/id/metropolitan-district-council/wolverhampton","721393","Diwali Nivas Ltd","P177519 22071820180703","2,072.00","TPP - Residential Care - Long Term","190476052","04/07/2018","Older People Care Purchasing","OP Care Purchasing (Spot Placements)","R5400"
"Wolverhampton City Council","http://opendatacommunities.org/id/metropolitan-district-council/wolverhampton","721393","Diwali Nivas Ltd","P177519 22071820180703","3,626.00","TPP - Residential Care - Short Term","190476052","04/07/2018","Older People Care Purchasing","OP Care Purchasing (Spot Placements)","R5401"
"Wolverhampton City Council","http://opendatacommunities.org/id/metropolitan-district-council/wolverhampton","721394","Her Majesty�s Prison & Probation Serv.","P179603 29071820180720","5,348.00","TPP - Residential Care - Long Term","190488130","25/07/2018","Looked After Children","Remand / Secure Accommodation","R5400"
"Wolverhampton City Council","http://opendatacommunities.org/id/metropolitan-district-council/wolverhampton","721394","Her Majesty�s Prison & Probation Serv.","P179109 22071820180713","13,650.00","TPP - Residential Care - Long Term","190484678","18/07/2018","Looked After Children","Remand / Secure Accommodation","R5400"
"Wolverhampton City Council","http://opendatacommunities.org/id/metropolitan-district-council/wolverhampton","721394","Her Majesty�s Prison & Probation Serv.","P179109 22071820180713","2,835.00","TPP - Residential Care - Long Term","190484678","18/07/2018","Looked After Children","Remand / Secure Accommodation","R5400"
"Wolverhampton City Council","http://opendatacommunities.org/id/metropolitan-district-council/wolverhampton","721394","Her Majesty�s Prison & Probation Serv.","P179109 22071820180713","3,024.00","TPP - Residential Care - Long Term","190484678","18/07/2018","Looked After Children","Remand / Secure Accommodation","R5400"
"Wolverhampton City Council","http://opendatacommunities.org/id/metropolitan-district-council/wolverhampton","721394","Her Majesty�s Prison & Probation Serv.","P179109 22071820180713","16,926.00","TPP - Residential Care - Long Term","190484678","18/07/2018","Looked After Children","Remand / Secure Accommodation","R5400"
"Wolverhampton City Council","http://opendatacommunities.org/id/metropolitan-district-council/wolverhampton","721394","Her Majesty�s Prison & Probation Serv.","P179109 22071820180713","16,926.00","TPP - Residential Care - Long Term","190484678","18/07/2018","Looked After Children","Remand / Secure Accommodation","R5400"
"Wolverhampton City Council","http://opendatacommunities.org/id/metropolitan-district-council/wolverhampton","721394","Her Majesty�s Prison & Probation Serv.","P179109 22071820180713","5,859.00","TPP - Residential Care - Long Term","190484678","18/07/2018","Looked After Children","Remand / Secure Accommodation","R5400"
"Wolverhampton City Council","http://opendatacommunities.org/id/metropolitan-district-council/wolverhampton","721398","Codelocks Limited","0000167467","1,149.50","Equipment - Purchase","130220219","11/07/2018","Adult Education","Central Costs","R4000"
"Wolverhampton City Council","http://opendatacommunities.org/id/metropolitan-district-council/wolverhampton","721405","E.ON Control Solutions Ltd","10035734","450.00","R&M - Departmental planned (external)","130221612","06/07/2018","Schools","The King�s Church of England School","R2001"
"Wolverhampton City Council","http://opendatacommunities.org/id/metropolitan-district-council/wolverhampton","721412","Evolve Advice Ltd","1064","482.64","Training Expenses","130220466","04/07/2018","Public Service Reform","Centralised Training","R1650"
"Wolverhampton City Council","http://opendatacommunities.org/id/metropolitan-district-council/wolverhampton","721414","Keats Grove Surgery","5743  WT 27/7/65","40.00","Medical Fees","190487305","23/07/2018","Catering","Meals on Wheels","R1400"
"Wolverhampton City Council","http://opendatacommunities.org/id/metropolitan-district-council/wolverhampton","721416","City B Group","42765","819.00","Marketing \ Non-staff advertising","130218701","11/07/2018","Adult Education","Service Wide","R4317"
"Wolverhampton City Council","http://opendatacommunities.org/id/metropolitan-district-council/wolverhampton","721433","Kyoti Graphics Ltd","INV4450","852.20","Marketing \ Non-staff advertising","130220467","18/07/2018","Adult Education","Service Wide","R4317"
"Wolverhampton City Council","http://opendatacommunities.org/id/metropolitan-district-council/wolverhampton","721433","Kyoti Graphics Ltd","INV4450","25.00","Comms - Postage","130220467","18/07/2018","Adult Education","Service Wide","R4503"
"Wolverhampton City Council","http://opendatacommunities.org/id/metropolitan-district-council/wolverhampton","721434","Anna Freud Centre","6609","1,400.00","Section 17","130219159","04/07/2018","Child Protection","CIN/CP Social Work Unit - Area 4","R6403"
"Wolverhampton City Council","http://opendatacommunities.org/id/metropolitan-district-council/wolverhampton","721434","Anna Freud Centre","6904","2,615.00","Section 17","130221564","11/07/2018","Child Protection","CIN/CP Social Work Unit - Area 4","R6403"
"Wolverhampton City Council","http://opendatacommunities.org/id/metropolitan-district-council/wolverhampton","721437","George Craig","204","750.00","Services - Professional Fees","130223385","25/07/2018","Standards and Vulnerable Pupils","Governors Support Team","R4400"
"Wolverhampton City Council","http://opendatacommunities.org/id/metropolitan-district-council/wolverhampton","721440","Roxeth Primary School","P17911120180713","800.00","Grant Payments to Individuals","190484668","18/07/2018","Looked After Children","Pupil Premium","R6402"
"Wolverhampton City Council","http://opendatacommunities.org/id/metropolitan-district-council/wolverhampton","721444","KJB UK Limited","93030","2,781.00","Printing","130220873","11/07/2018","ICTS","Document Centre - General","R4300"
"Wolverhampton City Council","http://opendatacommunities.org/id/metropolitan-district-council/wolverhampton","721444","KJB UK Limited","93031","458.00","Printing","130221042","11/07/2018","ICTS","Document Centre - General","R4300"
"Wolverhampton City Council","http://opendatacommunities.org/id/metropolitan-district-council/wolverhampton","721444","KJB UK Limited","93133","212.00","Printing","130221043","18/07/2018","ICTS","Document Centre - General","R4300"
"Wolverhampton City Council","http://opendatacommunities.org/id/metropolitan-district-council/wolverhampton","721444","KJB UK Limited","93151","390.00","Printing","130220874","18/07/2018","ICTS","Document Centre - General","R4300"
"Wolverhampton City Council","http://opendatacommunities.org/id/metropolitan-district-council/wolverhampton","721476","MAE Ltd T/A Primo IT","37859","86.00","Computing - Purchase of Hardware","130222313","25/07/2018","Adult Education","ICT Services","R4530"
"Wolverhampton City Council","http://opendatacommunities.org/id/metropolitan-district-council/wolverhampton","721482","Novelli Associates Limited","051825/1","1,750.00","Marketing \ Non-staff advertising","130223649","27/07/2018","Markets","Wolverhampton Indoor and Open Market","R4317"
"Wolverhampton City Council","http://opendatacommunities.org/id/metropolitan-district-council/wolverhampton","721482","Novelli Associates Limited","051825/2","1,750.00","Marketing \ Non-staff advertising","130222314","18/07/2018","Markets","Wolverhampton Indoor and Open Market","R4317"
"Wolverhampton City Council","http://opendatacommunities.org/id/metropolitan-district-council/wolverhampton","721493","Interlocks Surveys Limited","I000226","1,980.00","Services - Fees and Charges","130221233","04/07/2018","Corporate Asset Management","Strategic Asset Management Team","R4401"
"Wolverhampton City Council","http://opendatacommunities.org/id/metropolitan-district-council/wolverhampton","721508","Leanne O�Connor","Q440-056V","279.93","Services - Professional Fees","130221720","25/07/2018","Visitor Economy","Technical Support - ACE NPO WAG","R4400"
"Wolverhampton City Council","http://opendatacommunities.org/id/metropolitan-district-council/wolverhampton","721508","Leanne O�Connor","Q4400-056V","66.65","Services - Professional Fees","130222781","18/07/2018","Visitor Economy","Technical Support - ACE NPO WAG","R4400"
"Wolverhampton City Council","http://opendatacommunities.org/id/metropolitan-district-council/wolverhampton","721512","SafeLives","INV_S317093","608.00","Grant Payments","130221975","23/07/2018","Community Safety","SWP- DHR","R4700"
"Wolverhampton City Council","http://opendatacommunities.org/id/metropolitan-district-council/wolverhampton","721517","North Shropshire College","SIN36206","9,993.05","TPP - Alternative Provision of Education","130221241","06/07/2018","Special Educational Needs","Post 16 SEN Provision","R5037"
"Wolverhampton City Council","http://opendatacommunities.org/id/metropolitan-district-council/wolverhampton","721517","North Shropshire College","SIN36207","9,993.05","TPP - Alternative Provision of Education","130221242","06/07/2018","Special Educational Needs","Post 16 SEN Provision","R5037"
"Wolverhampton City Council","http://opendatacommunities.org/id/metropolitan-district-council/wolverhampton","721517","North Shropshire College","SIN36208","9,993.05","TPP - Alternative Provision of Education","130221240","04/07/2018","Special Educational Needs","Post 16 SEN Provision","R5037"
"Wolverhampton City Council","http://opendatacommunities.org/id/metropolitan-district-council/wolverhampton","721519","Birmingham Telecommuications Limited","54739","500.00","Equipment - Purchase","130220468","11/07/2018","Customer Services","City Direct","R4000"
"Wolverhampton City Council","http://opendatacommunities.org/id/metropolitan-district-council/wolverhampton","721519","Birmingham Telecommuications Limited","54812","500.00","Equipment - Purchase","130220220","11/07/2018","Customer Services","City Direct","R4000"
"Wolverhampton City Council","http://opendatacommunities.org/id/metropolitan-district-council/wolverhampton","721546","Little Bundles of Joy","0003/0004/0008","1,440.00","TPP - Child Care provided for client","130222315","13/07/2018","Adult Education","Discretionary Fund","R5034"
"Wolverhampton City Council","http://opendatacommunities.org/id/metropolitan-district-council/wolverhampton","721549","S F Bleasdale","116","480.00","Equipment - R & M","130223132","23/07/2018","Public Service Reform","Electoral Registration","R4003"
"Wolverhampton City Council","http://opendatacommunities.org/id/metropolitan-district-council/wolverhampton","721562","Chartered Trading Stds Ins NW Branch","2018/18","20.83","Training Expenses","130222414","13/07/2018","Public Protection","EHTS Operational Costs","R1650"
"Wolverhampton City Council","http://opendatacommunities.org/id/metropolitan-district-council/wolverhampton","721578","Hammonds Catering Services Ltd","51123","1,041.00","Equipment - Purchase","130222316","25/07/2018","Adult Education","Service Wide","R4000"
"Wolverhampton City Council","http://opendatacommunities.org/id/metropolitan-district-council/wolverhampton","721595","Chrysalis Associates Ltd","606/17","4,500.00","Direct Work With Children","130223481","25/07/2018","Looked After Children","Adoption Support Fund","R6310"
"Wolverhampton City Council","http://opendatacommunities.org/id/metropolitan-district-council/wolverhampton","721606","AMES Group Ltd","127580","45.00","Training Expenses","130221575","06/07/2018","Schools","The King�s Church of England School","R1650"
"Wolverhampton City Council","http://opendatacommunities.org/id/metropolitan-district-council/wolverhampton","721606","AMES Group Ltd","127810","525.00","Water Charges","130222501","13/07/2018","Schools","The King�s Church of England School","R2400"
"Wolverhampton City Council","http://opendatacommunities.org/id/metropolitan-district-council/wolverhampton","721606","AMES Group Ltd","128520","45.00","Training Expenses","130221576","06/07/2018","Schools","The King�s Church of England School","R1650"
"Wolverhampton City Council","http://opendatacommunities.org/id/metropolitan-district-council/wolverhampton","721608","Schindler Limited","362302148","198.75","R&M - Departmental planned (external)","130221603","06/07/2018","Schools","The King�s Church of England School","R2001"
"Wolverhampton City Council","http://opendatacommunities.org/id/metropolitan-district-council/wolverhampton","721611","YHA Eden Project","280/00003193","82.25","Education trips, Holidays, Outings & Activities","130221610","06/07/2018","Schools","The King�s Church of England School","R4970"
"Wolverhampton City Council","http://opendatacommunities.org/id/metropolitan-district-council/wolverhampton","721613","Goals Black Country","BLC/26540114","54.00","TPP - Sports Facilities","130223125","23/07/2018","Early Intervention","EIP Locality 2 � Bilston/Rocket Pool","R5028"
"Wolverhampton City Council","http://opendatacommunities.org/id/metropolitan-district-council/wolverhampton","721613","Goals Black Country","BLC/26540117","27.00","TPP - Sports Facilities","130223127","27/07/2018","Early Intervention","EIP Locality 2 � Bilston/Rocket Pool","R5028"
"Wolverhampton City Council","http://opendatacommunities.org/id/metropolitan-district-council/wolverhampton","721613","Goals Black Country","BLC/26540116","54.00","TPP - Sports Facilities","130223126","23/07/2018","Early Intervention","EIP Locality 2 � Bilston/Rocket Pool","R5028"
"Wolverhampton City Council","http://opendatacommunities.org/id/metropolitan-district-council/wolverhampton","721631","MJ Mapp","260000/56","1,851.35","Service Charges","190482822","11/07/2018","Cleaning","Public Conveniences","R2205"
"Wolverhampton City Council","http://opendatacommunities.org/id/metropolitan-district-council/wolverhampton","721631","MJ Mapp","260000/56(1)","7,000.00","Rent","190482823","11/07/2018","Cleaning","Public Conveniences","R2200"
"Wolverhampton City Council","http://opendatacommunities.org/id/metropolitan-district-council/wolverhampton","721633","Wolverhampton Walking for Health","WWFH/JULY2018/001","4,999.00","Grant Payments","130223386","27/07/2018","Skills","Job Change","R4700"
"Wolverhampton City Council","http://opendatacommunities.org/id/metropolitan-district-council/wolverhampton","721657","Wolgarston High school","P17974120180720","1,800.00","Grant Payments to Individuals","190488118","25/07/2018","Looked After Children","Pupil Premium","R6402"
"Wolverhampton City Council","http://opendatacommunities.org/id/metropolitan-district-council/wolverhampton","721676","The Royal British Legion","13/07/2018 blue form","2,036.00","Equipment - Purchase","130222786","18/07/2018","Transportation","Transportation General","R4000"
"Wolverhampton City Council","http://opendatacommunities.org/id/metropolitan-district-council/wolverhampton","721684","JMW Solicitors LLP","Blue Bill 12/07/2018","100.00","Fees - Other","130222970","18/07/2018","Legal Services","Legal Services","R9308"
"Wolverhampton City Council","http://opendatacommunities.org/id/metropolitan-district-council/wolverhampton","721685","Edward Hands & Lewis","Blue Bill - 12/07/2018","40.00","Fees - Other","130222972","18/07/2018","Legal Services","Legal Services","R9308"
